Period,Quarter,"Recipient Name",City,Province,Country,Title,Language,Genre,Date,"Final Value","Original Value",Type,Purpose,Comments
2019-2020,P1,"Grant Street Productions Ltd.",Vancouver,"British Columbia",Canada,"The New Corporation (aka The Corporation II)",English,Documentary,2019-06-18,450000.00,400000.00,Investment,"Theatrical Documentary Program","Amended Contract Signed 04-Mar-2016"
2019-2020,P1,"Mongrel Media Inc.",Toronto,Ontario,Canada,"Forbidden Room (The)",English,Drama,2019-05-13,31994.00,50325.00,Advance,"Marketing Program","Amended Contract Signed 29-Mar-2016"
2019-2020,P1,"Level Film Inc.",Toronto,Ontario,Canada,"Edge of Winter",English,Drama,2019-05-01,64433.00,75694.00,Advance,"Marketing Program","Amended Contract Signed 26-Jul-2016"
2019-2020,P3,"A71 Entertainment Inc.",Toronto,Ontario,Canada,Darken,English,"Science fiction/Fantasy/Tale",2019-11-06,110393.00,40000.00,Advance,"Marketing Program","Amended Contract Signed 21-Nov-2016"
2019-2020,P2,"Studio Couzin Inc.",Montreal,Quebec,Canada,"R�veuses de villes",French,Documentary,2019-07-29,145000.00,125000.00,Contribution,"Theatrical Documentary Program","Amended Contract Signed 25-Jul-2017"
2019-2020,P2,"PCF Journey Le Film Inc.",Montreal,Quebec,Canada,"Gut Instinct",English,Mystery/Crime/Police,2019-07-16,2623972.00,2373972.00,Investment,"Production Program","Amended Contract Signed 19-Feb-2018"
2019-2020,P1,"Productions OPO inc / OPO Productions  inc.",Montreal,Quebec,Canada,"la chute de l'empire am�ricain (aka triomphe de l'argent)",French,Mystery/Crime/Police,2019-05-01,2443510.00,2511500.00,Advance,"Production Program","Amended Contract Signed 06-Oct-2017"
2019-2020,P1,"SPF (Songs) Productions Inc.",Toronto,Ontario,Canada,"The Song of Names",English,Drama,2019-05-09,7500000.00,7000000.00,Investment,"Production Program","Amended Contract Signed 09-Mar-2018"
2019-2020,P1,"Blood Quantum inc",Montreal,Quebec,Canada,"Blood Quantum",English,Horror,2019-05-23,1750000.00,1700000.00,Investment,"Production Program","Amended Contract Signed 05-Feb-2018"
2019-2020,P2,"Motion 58 Entertainment Inc.",Vancouver,"British Columbia",Canada,Monoceros,English,"Science fiction/Fantasy/Tale",2019-07-02,0.00,500000.00,Investment,"Production Program","Amended Contract Signed 27-Mar-2018"
2019-2020,P3,"Fluent Films (PULSE) Inc.",Montreal,Quebec,Canada,"The Day Between",English,Drama,2019-12-19,0.00,450000.00,Contribution,"Production Program","Amended Contract Signed 16-Mar-2018"
2019-2020,P1,"Sienna Films Productions XVIII INC.",Toronto,Ontario,Canada,"Happy Place",English,Drama,2019-06-13,1300000.00,1200000.00,Investment,"Production Program","Amended Contract Signed 27-Mar-2019"
2019-2020,P3,"9360-9196 Qu�bec Inc.",Montreal,Quebec,Canada,"Avant qu'on explose",French,Comedy,2019-11-28,1296877.00,1347500.00,Investment,"Production Program","Amended Contract Signed 24-Oct-2017"
2019-2020,P2,"Productions Appalaches Inc.",Moncton,"New Brunswick",Canada,CIN�MADAWASKA,,,2019-07-19,0.00,1500.00,Contribution,"Promotion Program","Amended Contract Signed 21-Sep-2017"
2019-2020,P2,"9341-9315 Qu�bec Inc.",Verdun,Quebec,Canada,"Geek Girls",English,Documentary,2019-08-07,962.00,1500.00,Contribution,"International Marketing Program","Amended Contract Signed 14-Sep-2017"
2019-2020,P3,"Filmoption International Inc.",Westmount,Quebec,Canada,RADIUS,English,,2019-11-20,127671.00,131137.00,Advance,"Marketing Program","Amended Contract Signed 04-Dec-2017"
2019-2020,P1,"Clique Pictures Inc.",Toronto,Ontario,Canada,"Riot Girls",English,"Science fiction/Fantasy/Tale",2019-06-05,0.00,100000.00,Advance,"Production Program","Amended Contract Signed 21-Sep-2017"
2019-2020,P1,"Clique Pictures Inc.",Toronto,Ontario,Canada,"Riot Girls",English,"Science fiction/Fantasy/Tale",2019-06-05,100000.00,0.00,Investment,"Production Program","Amended Contract Signed 21-Sep-2017"
2019-2020,P2,"A-Z Films Inc.",Montreal,Quebec,Canada,"We're Still Together",English,Drama,2019-07-08,0.00,38053.00,Advance,"Marketing Program","Amended Contract Signed 23-Mar-2018"
2019-2020,P1,"Serendipity Point Films Inc.",Toronto,Ontario,Canada,"The Song of Names",English,Drama,2019-05-30,0.00,500000.00,Advance,"Production Program","Amended Contract Signed 18-Dec-2017"
2019-2020,P1,"Serendipity Point Films Inc.",Toronto,Ontario,Canada,"The Song of Names",English,Drama,2019-05-30,500000.00,0.00,Investment,"Production Program","Amended Contract Signed 18-Dec-2017"
2019-2020,P2,"Les Films Insiders inc.",Verdun,Quebec,Canada,"Il pleuvait des oiseaux",French,Drama,2019-08-16,1300000.00,1200000.00,Investment,"Production Program","Amended Contract Signed 01-Aug-2018"
2019-2020,P2,"9341-9315 Qu�bec Inc.",Verdun,Quebec,Canada,"Geek Girls",English,Documentary,2019-08-07,0.00,1500.00,Contribution,"International Marketing Program","Amended Contract Signed 11-Dec-2017"
2019-2020,P3,"Mongrel Media Inc.",Toronto,Ontario,Canada,"Meditation Park",English,,2019-10-28,99750.00,142500.00,Advance,"Marketing Program","Amended Contract Signed 15-Mar-2018"
2019-2020,P1,"Amalga Cr�ations Films Inc.",Montreal,Quebec,Canada,"Merci pour tout",French,Comedy,2019-04-05,1400000.00,1400000.00,Advance,"Production Program",
2019-2020,P3,"GROUPE PVP INC.",Matane,Quebec,Canada,"Coproduction market - no specific project",English,,2019-11-18,0.00,1000.00,Contribution,"International Marketing Program","Amended Contract Signed 12-Feb-2018"
2019-2020,P1,"Video-Ville Showtime Inc.",Montreal,Quebec,Canada,Identit�s,French,,2019-06-25,142605.00,150000.00,Advance,"Marketing Program","Amended Contract Signed 18-Sep-2018"
2019-2020,P2,"2623427 Ontario Inc.",Toronto,Ontario,Canada,"Castle in the Ground",English,Drama,2019-07-22,350000.00,350000.00,Investment,"Production Program",
2019-2020,P2,"Sparrow & Crow Films Inc.",Gibsons,"British Columbia",Canada,"Monkey Beach",English,Drama,2019-07-09,1789092.00,1739500.00,Investment,"Production Program","Amended Contract Signed 17-Oct-2018"
2019-2020,P2,"9393-7654 Qu�bec Inc.",Montreal,Quebec,Canada,"LIKE A HOUSE ON FIRE",English,Drama,2019-07-02,0.00,400000.00,Contribution,"Production Program","Amended Contract Signed 26-Mar-2019"
2019-2020,P2,"9393-7654 Qu�bec Inc.",Montreal,Quebec,Canada,"LIKE A HOUSE ON FIRE",English,Drama,2019-07-02,400000.00,0.00,Investment,"Production Program","Amended Contract Signed 26-Mar-2019"
2019-2020,P3,"Funny Boy Productions Inc.",Toronto,Ontario,Canada,"Funny Boy",English,Drama,2019-10-23,2200000.00,2200000.00,Investment,"Production Program",
2019-2020,P1,"1992101 Ontario Inc.",Toronto,Ontario,Canada,"Akilla's Escape",English,Drama,2019-05-02,450000.00,375000.00,Investment,"Production Program","Amended Contract Signed 21-Nov-2018"
2019-2020,P3,"Les guerres interminables inc.",Montreal,Quebec,Canada,"De guerre lasse",French,Drama,2019-11-20,300000.00,300000.00,Contribution,"Production Program",
2019-2020,P2,"Tabija Film Inc.",Toronto,Ontario,Canada,Tabija,English,Drama,2019-09-23,425000.00,425000.00,Investment,"Production Program",
2019-2020,P1,"Hired Hands Productions Ltd.",Edmonton,Alberta,Canada,"Hands that Bind",English,Drama,2019-04-09,240000.00,220000.00,Contribution,"Production Program","Amended Contract Signed 14-Feb-2019"
2019-2020,P1,"Possibles M�dia II Inc.",Montreal,Quebec,Canada,"It Must be Heaven",French,Comedy,2019-05-09,200000.00,200000.00,Advance,"Production Program",
2019-2020,P2,"9375-5809 Qu�bec inc.",Montreal,Quebec,Canada,"Matthias et Maxime",French,Drama,2019-07-05,1600000.00,1600000.00,Investment,"Production Program",
2019-2020,P3,"673709 NB Inc.",Moncton,"New Brunswick",Canada,"Mr. Freeze et Allumette",French,Action/Adventure,2019-12-20,0.00,500000.00,Contribution,"Production Program","Amended Contract Signed 28-Mar-2019"
2019-2020,P3,"9382-3714 Qu�bec inc.",Montreal,Quebec,Canada,"Les cahiers",French,Drama,2019-12-18,370000.00,370000.00,Investment,"Production Program",
2019-2020,P3,"Marina Cordoni Entertainment Inc.",Toronto,Ontario,Canada,"Never Saw It Coming",English,,2019-10-22,27306.00,34072.00,Advance,"Marketing Program","Amended Contract Signed 21-Aug-2018"
2019-2020,P3,"Funfilm Distribution Inc.",Montreal,Quebec,Canada,OSCILLATIONS,French,Drama,2019-10-01,10350.00,13000.00,Advance,"Marketing Program","Amended Contract Signed 17-Dec-2018"
2019-2020,P3,"Intuitive Pictures Inc.",Montreal,Quebec,Canada,"The Oslo Diaries",English,Documentary,2019-10-22,0.00,19923.00,Advance,"Marketing Program","Amended Contract Signed 12-Oct-2018"
2019-2020,P1,"Films Christal, s.e.c.(Les), agissant par l'interm�diaire de son commandit�, Les Films Christal Inc",Montreal,Quebec,Canada,"Dans la brume",French,,2019-04-05,125268.00,135581.00,Advance,"Marketing Program","Amended Contract Signed 21-Nov-2018"
2019-2020,P1,"Entertainment One Films Canada Inc.",Toronto,Ontario,Canada,"Little Italy",English,,2019-06-26,963480.00,1043640.00,Advance,"Marketing Program","Amended Contract Signed 16-Nov-2018"
2019-2020,P3,"K.O. 24 II Inc.",Montreal,Quebec,Canada,"Le guide de la famille parfaite",French,Comedy,2019-11-25,1240000.00,1240000.00,Advance,"Production Program",
2019-2020,P2,"9401-1095 Qu�bec inc.",Qu�bec,Quebec,Canada,"Ce que le monde porte en soi",French,Documentary,2019-08-21,125000.00,125000.00,Contribution,"Theatrical Documentary Program",
2019-2020,P3,"Atwood Encounters Inc.",Toronto,Ontario,Canada,"Margaret Atwood: A Word After a Word After a Word Is Power",English,Documentary,2019-11-19,100000.00,100000.00,Investment,"Theatrical Documentary Program",
2019-2020,P3,"4412826 Canada inc.",Gatineau,Quebec,Canada,"Team Indigenous",English,Documentary,2019-12-19,100000.00,100000.00,Contribution,"Theatrical Documentary Program",
2019-2020,P1,"Magnitude Productions Inc.",Burnaby,"British Columbia",Canada,"The Magnitude of All Things",English,Documentary,2019-04-29,100000.00,100000.00,Contribution,"Theatrical Documentary Program",
2019-2020,P3,"Intuitive Pictures Productions Inc.",Montreal,Quebec,Canada,"Meatware (aka The Unmaking, The Future of Work)",English,Documentary,2019-12-20,75000.00,75000.00,Contribution,"Theatrical Documentary Program",
2019-2020,P1,"9347-7784 Qu�bec inc.",Montreal,Quebec,Canada,Souterrain,French,Thriller,2019-05-23,700000.00,700000.00,Investment,"Production Program",
2019-2020,P2,"Films S�ville Inc. (Les)",Montreal,Quebec,Canada,"Disparition des lucioles (La)",French,Drama,2019-08-27,140531.00,144937.00,Advance,"Marketing Program","Amended Contract Signed 04-Dec-2018"
2019-2020,P3,"P�riph�ria Productions Inc.",Montreal,Quebec,Canada,"La Nuit des Rois",French,Drama,2019-10-15,200000.00,200000.00,Investment,"Production Program",
2019-2020,P1,"QOTMC INC.",Toronto,Ontario,Canada,"Queen of the Morning Calm",English,Drama,2019-05-03,215000.00,215000.00,Contribution,"Production Program",
2019-2020,P1,"9204-8628 Quebec Inc.",Montreal,Quebec,Canada,"Rojek, un jour",French,Documentary,2019-06-10,150000.00,150000.00,Investment,"Theatrical Documentary Program",
2019-2020,P1,"Raven Banner Releasing Inc.",Toronto,Ontario,Canada,"The Hollow Child",English,,2019-05-26,40672.00,40672.00,Advance,"Marketing Program","Amended Contract Signed 11-Feb-2019"
2019-2020,P3,"Films S�ville Inc. (Les)",Montreal,Quebec,Canada,"La Course des Tuques",French,,2019-11-14,683859.00,751914.00,Advance,"Marketing Program","Amended Contract Signed 06-Feb-2019"
2019-2020,P1,"DCP Mystery Arts Inc.",Toronto,Ontario,Canada,"Death of a Ladies' Man",English,Drama,2019-04-11,0.00,150000.00,Advance,"Production Program","Amended Contract Signed 20-Dec-2018"
2019-2020,P1,"DCP Mystery Arts Inc.",Toronto,Ontario,Canada,"Death of a Ladies' Man",English,Drama,2019-04-11,150000.00,0.00,Investment,"Production Program","Amended Contract Signed 20-Dec-2018"
2019-2020,P3,"Elevation Pictures Corp.",Toronto,Ontario,Canada,"The New Romantic",English,"Romantic Comedy",2019-12-20,96525.00,111919.00,Advance,"Marketing Program","Amended Contract Signed 20-Feb-2019"
2019-2020,P2,"Kid Detective Productions Inc.",Toronto,Ontario,Canada,"The Kid Detective",English,Comedy,2019-09-11,1000000.00,1000000.00,Investment,"Production Program",
2019-2020,P3,"Exchange Movie Canada Inc.",Toronto,Ontario,Canada,"Exchange, The",English,Comedy,2019-10-15,1500000.00,1500000.00,Investment,"Production Program",
2019-2020,P3,"Films Christal, s.e.c.(Les), agissant par l'interm�diaire de son commandit�, Les Films Christal Inc",Montreal,Quebec,Canada,Malek,French,,2019-10-30,38152.00,41448.00,Advance,"Marketing Program","Amended Contract Signed 27-Feb-2019"
2019-2020,P2,"Productions OPO inc / OPO Productions  inc.",Montreal,Quebec,Canada,"Oeil pour Oeil",French,Thriller,2019-09-23,691879.00,691879.00,Advance,"Production Program",
2019-2020,P3,"Productions OPO inc / OPO Productions  inc.",Montreal,Quebec,Canada,"Oeil pour Oeil",French,Thriller,2019-12-05,0.00,691879.00,Advance,"Production Program","Amended Contract Signed 23-Sep-2019"
2019-2020,P2,"Attraction Images Productions XVI Inc.",Montreal,Quebec,Canada,"Mon cirque � moi",French,"Romantic Comedy",2019-08-26,1650000.00,1650000.00,Advance,"Production Program",
2019-2020,P3,"Production Cr�puscule Inc.",Montreal,Quebec,Canada,"CR�PUSCULE POUR UN TUEUR",French,Drama,2019-11-18,1100000.00,1100000.00,Investment,"Production Program",
2019-2020,P3,"PCF Aline Le Film Inc.",Montreal,Quebec,Canada,"Famous a.k.a. La Vraie vie d'Aline Dieu",French,Comedy,2019-11-28,250000.00,250000.00,Investment,"Production Program",
2019-2020,P2,"Elevation Pictures Corp.",Toronto,Ontario,Canada,"Elliot The Littlest Reindeer",English,Drama,2019-08-15,140008.00,140008.00,Advance,"Marketing Program",
2019-2020,P1,"Maison 4:3 Inc.",Montreal,Quebec,Canada,"Seven Last Words (The)",English,,2019-06-26,15000.00,15000.00,Advance,"Marketing Program",
2019-2020,P1,"Les Productions N�m�sis Films inc.",Montreal,Quebec,Canada,"Nadia, butterfly",French,Drama,2019-06-10,500000.00,500000.00,Contribution,"Production Program",
2019-2020,P1,"9145-6921 QUEBEC INC.",Montreal,Quebec,Canada,"La face cach�e du Baklava",French,Comedy,2019-05-23,600000.00,600000.00,Contribution,"Production Program",
2019-2020,P1,"9174-5018 Qu�bec inc.",Montreal,Quebec,Canada,"La d�esse des mouches � feu",French,Drama,2019-05-21,1300000.00,1300000.00,Investment,"Production Program",
2019-2020,P2,"Les Films de Jennie Inc.",Montreal,Quebec,Canada,IMPETUS,French,Drama,2019-07-18,39850.00,39850.00,Contribution,"Production Program",
2019-2020,P3,"STARLET FILM INC","Cape North","Nova Scotia",Canada,"Queens of the Qing Dynasty",English,Drama,2019-12-12,500000.00,500000.00,Contribution,"Production Program",
2019-2020,P3,"Young Tribe Productions Inc.",Toronto,Ontario,Canada,Tribe,English,Drama,2019-11-07,125000.00,125000.00,Contribution,"Talent To Watch Program",
2019-2020,P2,"9393-2663 Qu�bec inc.",Montreal,Quebec,Canada,"Windy Gun",French,Comedy,2019-09-09,125000.00,125000.00,Contribution,"Talent To Watch Program",
2019-2020,P3,"Productions Microclimat Inc.",Montreal,Quebec,Canada,Bootlegger,French,Drama,2019-11-20,800000.00,800000.00,Investment,"Production Program",
2019-2020,P3,"9400-7572 Qu�bec inc.",Montreal,Quebec,Canada,Jouvencelles,French,Documentary,2019-12-18,125000.00,125000.00,Contribution,"Talent To Watch Program",
2019-2020,P3,"NICK BERGMAN INC.",Toronto,Ontario,Canada,Shylo,English,Musical,2019-10-25,125000.00,125000.00,Contribution,"Talent To Watch Program",
2019-2020,P3,"9393-2135 Qu�bec Inc.",Montreal,Quebec,Canada,"Gallant: Confessions d'un tueur � gages",French,Mystery/Crime/Police,2019-10-01,2150000.00,2150000.00,Investment,"Production Program",
2019-2020,P3,"Films Christal, s.e.c.(Les), agissant par l'interm�diaire de son commandit�, Les Films Christal Inc",Montreal,Quebec,Canada,"Avant qu'on explose",French,,2019-12-03,146120.00,168375.00,Advance,"Marketing Program","Amended Contract Signed 15-Mar-2019"
2019-2020,P2,"The Middle Man Films Inc.",Toronto,Ontario,Canada,"The Middle Man",English,Comedy,2019-09-04,200000.00,200000.00,Investment,"Production Program",
2019-2020,P2,"Night Raiders East Inc.",Toronto,Ontario,Canada,"Night Raiders",English,"Science fiction/Fantasy/Tale",2019-07-18,2200000.00,2200000.00,Investment,"Production Program",
2019-2020,P2,"11455176 Canada Inc.",Montreal,Quebec,Canada,BEANS,English,"Historical Drama",2019-09-27,1240000.00,1240000.00,Advance,"Production Program",
2019-2020,P3,"CHAINED FILMS INC.",Vancouver,"British Columbia",Canada,Chained,English,Mystery/Crime/Police,2019-10-25,375000.00,375000.00,Investment,"Production Program",
2019-2020,P3,"Jim At The Hotel Productions Ltd.",Vancouver,"British Columbia",Canada,Daughter,English,Drama,2019-10-03,65000.00,65000.00,Contribution,"Production Program",
2019-2020,P2,"1171803B.C. LTD.","Port Mcneill","British Columbia",Canada,Spiral,English,Horror,2019-09-24,75000.00,75000.00,Contribution,"Production Program",
2019-2020,P2,"Mixtape SB Productions Inc.",Toronto,Ontario,Canada,Slash/Back,English,"Science fiction/Fantasy/Tale",2019-09-24,1350000.00,1350000.00,Investment,"Production Program",
2019-2020,P2,"Portraits From A Fire Productions Inc.",Surrey,"British Columbia",Canada,"Portraits from a Fire",English,Drama,2019-08-13,375000.00,375000.00,Contribution,"Production Program",
2019-2020,P3,"2325639 Ontario Inc.",Toronto,Ontario,Canada,"We're All In This Together",English,Drama,2019-12-09,325000.00,325000.00,Investment,"Production Program",
2019-2020,P2,"P�riph�ria Productions Inc.",Montreal,Quebec,Canada,"Kidnapping S.A.",French,Comedy,2019-08-26,110000.00,110000.00,Contribution,"Production Program",
2019-2020,P2,"9226-6865 Qu�bec inc.",Montreal,Quebec,Canada,L'Acrobate,French,Drama,2019-09-12,100000.00,100000.00,Contribution,"Production Program",
2019-2020,P3,"Stupid For films Inc.",Toronto,Ontario,Canada,"Stupid For You",English,"Romantic Comedy",2019-10-24,124130.00,124130.00,Investment,"Production Program",
2019-2020,P2,"Bella Ciao Digital Incorporated",Vancouver,"British Columbia",Canada,"Bella Ciao! National Theatrical Release",English,,2019-07-09,25000.00,25000.00,Advance,"Marketing Program",
2019-2020,P1,"Productions l'unit� centrale inc.",Montreal,Quebec,Canada,Gen�se,French,Drama,2019-06-21,1500.00,1500.00,Contribution,"International Marketing Program",
2019-2020,P1,"9286-4883 Qu�bec Inc. (faisant affaire sous le nom de L'embuscade Films)",Montreal,Quebec,Canada,Archipel,French,Documentary,2019-04-18,1500.00,1500.00,Contribution,"International Marketing Program",
2019-2020,P1,"Flying Car Productions Inc.",Vancouver,"British Columbia",Canada,"The Shipment",English,,2019-04-17,1500.00,1500.00,Contribution,"International Marketing Program",
2019-2020,P1,"Funfilm Distribution Inc.",Montreal,Quebec,Canada,"Ville Neuve",French,,2019-06-05,26000.00,26000.00,Advance,"Marketing Program",
2019-2020,P1,"Goodbye Productions Inc.",Vancouver,"British Columbia",Canada,Dreamland,,,2019-06-25,4000.00,4000.00,Contribution,"International Marketing Program",
2019-2020,P1,"RLD Productions Ltd.",Calgary,Alberta,Canada,"Red Letter Day",,,2019-06-20,3200.00,3200.00,Contribution,"International Marketing Program",
2019-2020,P3,"White Pine Pictures Inc.",Toronto,Ontario,Canada,"Toxic Beauty",English,Documentary,2019-10-08,25000.00,25000.00,Advance,"Marketing Program",
2019-2020,P3,"White Pine Pictures Inc.",Toronto,Ontario,Canada,"The Corporate Coup d'Etat",English,,2019-10-08,30000.00,30000.00,Advance,"Marketing Program",
2019-2020,P2,"Maison 4:3 Inc.",Montreal,Quebec,Canada,"Mad Dog Labine",French,,2019-07-15,25000.00,25000.00,Advance,"Marketing Program",
2019-2020,P1,"LIGNE 7 SAS",Tourcoing,,France,"La grande noirceur",French,,2019-04-25,27000.00,27000.00,Contribution,"Export Assistance Program",
2019-2020,P1,"2452989 ONTARIO INC.",Thornhill,Ontario,Canada,"Bunker Burger",,,2019-04-23,1500.00,1500.00,Contribution,"International Marketing Program",
2019-2020,P1,Shellac,Marseille,,France,Gen�se,French,,2019-05-15,30000.00,30000.00,Contribution,"Export Assistance Program",
2019-2020,P2,"Catbird Films Inc.",Montreal,Quebec,Canada,"Finding Sally",,,2019-09-11,1500.00,1500.00,Contribution,"International Marketing Program",
2019-2020,P1,"Boomerang Films Inc.",Toronto,Ontario,Canada,"Dark Light",,,2019-04-25,1500.00,1500.00,Contribution,"International Marketing Program",
2019-2020,P3,"Wire Walker Studios Canada",Lachine,Quebec,Canada,"Peace by Chocolate",English,Drama,2019-12-20,400000.00,400000.00,Contribution,"Production Program",
2019-2020,P1,"Fauve Film Inc.",Montreal,Quebec,Canada,"La mer entre nous (The Sea Between Us)",,,2019-06-17,1500.00,1500.00,Contribution,"International Marketing Program",
2019-2020,P1,"9377-3570 Qu�bec inc.",Montreal,Quebec,Canada,"Damascus Dreams",,,2019-06-06,1500.00,1500.00,Contribution,"International Marketing Program",
2019-2020,P1,"Outsider Films Lda",Lisbon,0,Portugal,"The Fall of the American Empire / La Chute de l�Empire Am�rican",English,,2019-05-14,13000.00,13000.00,Contribution,"Export Assistance Program",
2019-2020,P2,"Diaspora Movie Inc.",Winnipeg,Manitoba,Canada,Diaspora,English,Drama,2019-07-10,400000.00,400000.00,Contribution,"Production Program",
2019-2020,P1,"9322-5019 Qu�bec Inc.",Montreal,Quebec,Canada,"Memory Is Our Homeland",,,2019-05-29,5000.00,5000.00,Contribution,"International Marketing Program",
2019-2020,P1,"Entertainment One Films Canada Inc.",Toronto,Ontario,Canada,Stockholm,English,,2019-06-27,197607.00,197607.00,Advance,"Marketing Program",
2019-2020,P1,"Maison 4:3 Inc.",Montreal,Quebec,Canada,"R�VEUSES DE VILLES",French,,2019-06-10,27000.00,27000.00,Advance,"Marketing Program",
2019-2020,P3,"The Righteous Film NL Inc.","Conception Bay South",Newfoundland/Labrador,Canada,"The Righteous",English,Thriller,2019-12-12,300000.00,300000.00,Investment,"Production Program",
2019-2020,P2,"Level Film Inc.",Toronto,Ontario,Canada,"Survival Box",English,Thriller,2019-08-28,15000.00,15000.00,Advance,"Marketing Program",
2019-2020,P1,"VLADOLENA PICTURES INC.",Vancouver,"British Columbia",Canada,"Title 1: Game Over - Title 2: #Lovetodeath",,,2019-05-30,1500.00,1500.00,Contribution,"International Marketing Program",
2019-2020,P3,"The Retreat Productions Inc.",Hamilton,Ontario,Canada,"The Retreat",English,Horror,2019-12-04,405000.00,405000.00,Investment,"Production Program",
2019-2020,P2,"Raven Banner Releasing Inc.",Toronto,Ontario,Canada,"James vs His Future Self",English,,2019-07-12,49995.00,49995.00,Advance,"Marketing Program",
2019-2020,P3,"Little Dipper Films Inc.",Whitehorse,Yukon,Canada,POLARIS,English,Drama,2019-10-28,400000.00,400000.00,Contribution,"Production Program",
2019-2020,P3,"Filmoption International Inc.",Westmount,Quebec,Canada,"LEPAGE AU SOLEIL - � L'ORIGINE DE KANATA",French,,2019-10-04,30000.00,30000.00,Advance,"Marketing Program",
2019-2020,P2,"Artificial Universe Productions Inc.",Toronto,Ontario,Canada,"Between Waves (formerly Echoes)",English,"Science fiction/Fantasy/Tale",2019-08-23,65000.00,65000.00,Contribution,"Production Program",
2019-2020,P1,"9377-3570 Qu�bec inc.",Montreal,Quebec,Canada,"Damascus Dreams",,,2019-05-27,1500.00,1500.00,Contribution,"International Marketing Program",
2019-2020,P2,"T�l�fiction Distribution et Marketing Inc.",Montreal,Quebec,Canada,"Les Fabuleuses",French,Drama,2019-07-15,186056.00,186056.00,Advance,"Marketing Program",
2019-2020,P2,"Raven Banner Releasing Inc.",Toronto,Ontario,Canada,"Pipe Dreams",English,,2019-09-04,25000.00,25000.00,Advance,"Marketing Program",
2019-2020,P2,"T�l�fiction Distribution et Marketing Inc.",Montreal,Quebec,Canada,Jouliks,French,Drama,2019-08-15,200142.00,200142.00,Advance,"Marketing Program",
2019-2020,P2,"Broadmedia Studios Corporation",Tokyo,,Japan,"The Fireflies Are Gone (La disparition des lucioles)",English,,2019-07-04,26000.00,26000.00,Contribution,"Export Assistance Program",
2019-2020,P3,"Broadmedia Studios Corporation",Tokyo,,Japan,"The Fireflies Are Gone (La disparition des lucioles)",English,,2019-10-09,20945.00,26000.00,Contribution,"Export Assistance Program","Amended Contract Signed 04-Jul-2019"
2019-2020,P2,"Raven Banner Releasing Inc.",Toronto,Ontario,Canada,"This Is North Preston",English,Documentary,2019-08-27,12000.00,12000.00,Advance,"Marketing Program",
2019-2020,P1,"775 Media Corp.",Calgary,Alberta,Canada,Harpoon,,,2019-06-25,1500.00,1500.00,Contribution,"International Marketing Program",
2019-2020,P1,"775 Media Corp.",Calgary,Alberta,Canada,Harpoon,,,2019-06-25,1500.00,1500.00,Contribution,"International Marketing Program",
2019-2020,P3,"Wild Wonderland Film Inc.",Toronto,Ontario,Canada,"All The Madmen (aka Stardust)",English,Drama,2019-12-23,150000.00,150000.00,Investment,"Production Program",
2019-2020,P1,"Possibles M�dia inc.",Montreal,Quebec,Canada,"It Must be Heaven",,,2019-05-29,3000.00,3000.00,Contribution,"International Marketing Program",
2019-2020,P3,"Aqute Media Inc.",Toronto,Ontario,Canada,Astronaut,English,,2019-12-18,25000.00,25000.00,Advance,"Marketing Program",
2019-2020,P2,"Vertical Entertainment, LLC","Santa Monica",California,"United States","GIANT LITTLE ONES",English,,2019-08-01,45000.00,45000.00,Contribution,"Export Assistance Program",
2019-2020,P2,"Films S�ville Inc. (Les)",Montreal,Quebec,Canada,"LA FEMME DE MON FR�RE",,,2019-08-16,25000.00,25000.00,Contribution,"International Marketing Program",
2019-2020,P1,"Taqqut Productions Inc.",Iqaluit,Nunavut,Canada,"Giant Bear",,,2019-05-31,1700.00,1700.00,Contribution,"International Marketing Program",
2019-2020,P2,"Le Grand Imagier Inc.",Montreal,Quebec,Canada,"Avec un sourire, la r�volution!",,,2019-07-10,1500.00,1500.00,Contribution,"International Marketing Program",
2019-2020,P1,"Frank Films Inc.",Toronto,Ontario,Canada,"Prison TV",,,2019-05-28,1500.00,1500.00,Contribution,"International Marketing Program",
2019-2020,P1,"Pursuing Giraffe Adventures Inc.",Toronto,Ontario,Canada,"THE WOMAN WHO LOVES GIRAFFES",,,2019-06-10,1500.00,1500.00,Contribution,"International Marketing Program",
2019-2020,P1,"Bridge Film Productions Inc.",Toronto,Ontario,Canada,"Hugh Hefner's After Dark:  Speaking Out in America",,,2019-05-30,1500.00,1500.00,Contribution,"International Marketing Program",
2019-2020,P1,"Le Film Happy Face Inc.",Montreal,Quebec,Canada,"HAPPY FACE",,,2019-06-11,1500.00,1500.00,Contribution,"International Marketing Program",
2019-2020,P1,"Le Film Happy Face Inc.",Montreal,Quebec,Canada,"HAPPY FACE",,,2019-06-11,1500.00,1500.00,Contribution,"International Marketing Program",
2019-2020,P3,"A71 Entertainment Inc.",Toronto,Ontario,Canada,"Trouble in the Garden",English,,2019-10-29,26970.00,26970.00,Advance,"Marketing Program",
2019-2020,P3,"Productions de l'Esplanade Inc.",Montreal,Quebec,Canada,"Brain Freeze (aka L'�le-aux-Paons)",French,Comedy,2019-12-13,1050000.00,1050000.00,Investment,"Production Program",
2019-2020,P1,"Night Raiders East Inc.",Toronto,Ontario,Canada,"Night Raiders",English,"Science fiction/Fantasy/Tale",2019-05-21,150000.00,150000.00,Advance,"Production Program",
2019-2020,P2,"Night Raiders East Inc.",Toronto,Ontario,Canada,"Night Raiders",English,"Science fiction/Fantasy/Tale",2019-07-23,0.00,150000.00,Advance,"Production Program","Amended Contract Signed 21-May-2019"
2019-2020,P2,"Night Raiders East Inc.",Toronto,Ontario,Canada,"Night Raiders",English,"Science fiction/Fantasy/Tale",2019-07-23,150000.00,0.00,Investment,"Production Program","Amended Contract Signed 21-May-2019"
2019-2020,P1,"Maison 4:3 Inc.",Montreal,Quebec,Canada,Antigone,French,,2019-06-13,161086.00,161086.00,Advance,"Marketing Program",
2019-2020,P2,"Vertical Entertainment, LLC","Santa Monica",California,"United States","American Hangman",English,,2019-08-13,39000.00,39000.00,Contribution,"Export Assistance Program",
2019-2020,P1,"Nootka Street Film Company Inc.",Vancouver,"British Columbia",Canada,"The Day Don Died",,,2019-06-05,1500.00,1500.00,Contribution,"International Marketing Program",
2019-2020,P1,"Buck Productions Inc.",Toronto,Ontario,Canada,Astronaut,,,2019-06-20,5000.00,5000.00,Contribution,"International Marketing Program",
2019-2020,P1,"9097-4767 Qu�bec inc.",Montreal,Quebec,Canada,"Ziva Postec. La monteuse derri�re le film Shoah",,,2019-05-29,1500.00,1500.00,Contribution,"International Marketing Program",
2019-2020,P1,"Pearlshine Limited",London,,"United Kingdom","HERO - UK City to City Tour",English,,2019-06-13,45000.00,45000.00,Contribution,"Export Assistance Program",
2019-2020,P2,"MK2 Mile End Inc.",Montreal,Quebec,Canada,"Il pleuvait des oiseaux",French,,2019-08-13,260000.00,260000.00,Advance,"Marketing Program",
2019-2020,P3,"MK2 Mile End Inc.",Montreal,Quebec,Canada,"Il pleuvait des oiseaux",French,,2019-12-03,290000.00,260000.00,Advance,"Marketing Program","Amended Contract Signed 13-Aug-2019"
2019-2020,P2,"Table de concertation de l'industrie du cin�ma et de la t�l�vision de la Capitale-Nationale",Qu�bec,Quebec,Canada,"Soutien annuel Table CICTCN",,,2019-09-13,4000.00,4000.00,Contribution,"Promotion Program",
2019-2020,P1,"Caribbean Tales",Toronto,Ontario,Canada,"CaribbeanTales Film Festival  + Incubator + CineFam",,,2019-06-18,28000.00,28000.00,Contribution,"Promotion Program",
2019-2020,P3,"Fragments Distribution Inc.",Montreal,Quebec,Canada,R�SERVOIR,French,,2019-10-31,15000.00,15000.00,Advance,"Marketing Program",
2019-2020,P1,"FIRST WEEKEND CLUB FILM SOCIETY","North Vancouver","British Columbia",Canada,"First Weekend Club",,,2019-06-13,118350.00,118350.00,Contribution,"Promotion Program",
2019-2020,P2,"Atlantic Film Festival Association",Halifax,"Nova Scotia",Canada,"FIN Atlantic International Film Festival and FIN Partners",,,2019-07-09,182631.00,182631.00,Contribution,"Promotion Program",
2019-2020,P1,"ReelWorld Film Festival Inc.",Toronto,Ontario,Canada,"Reelworld Film Festival and E20 Impact Lounge",,,2019-06-28,43021.00,43021.00,Contribution,"Promotion Program",
2019-2020,P1,"Canadian Film in the Schools",Toronto,Ontario,Canada,"National Canadian Film Day",,,2019-06-12,154113.00,154113.00,Contribution,"Promotion Program",
2019-2020,P1,"Productions Sc�nat de L'Abitibi-Temiscamingue",Rouyn-Noranda,Quebec,Canada,"Festival du cin�ma international en Abitibi-T�miscamingue",,,2019-06-20,62082.00,62082.00,Contribution,"Promotion Program",
2019-2020,P1,"Festival de Cin�ma de la Ville de Qu�bec",Qu�bec,Quebec,Canada,"Festival de cin�ma de la ville de Qu�bec 2019",,,2019-06-11,45204.00,45204.00,Contribution,"Promotion Program",
2019-2020,P2,"Short Stop Pictures XII Ltd",Halifax,"Nova Scotia",Canada,"Short Film Face Off",,,2019-07-10,37500.00,37500.00,Contribution,"Promotion Program",
2019-2020,P2,"Urban Distribution",Paris,,France,"Ville Neuve",French,,2019-07-24,30000.00,30000.00,Contribution,"Export Assistance Program",
2019-2020,P2,"Kingston Canadian Film Festival",Kingston,Ontario,Canada,"2020 Kingston Canadian Film Festival",,,2019-09-19,3245.00,3245.00,Contribution,"Promotion Program",
2019-2020,P1,"Edmonton International Film Festival Society",Edmonton,Alberta,Canada,"Edmonton International Film Festival",,,2019-06-13,26170.00,26170.00,Contribution,"Promotion Program",
2019-2020,P2,"Greenground Productions Inc.",Montreal,Quebec,Canada,"Trans-Atlantic Partners (TAP)",,,2019-08-23,1500.00,1500.00,Contribution,"International Marketing Program",
2019-2020,P1,"Banff Television Festival Foundation",Calgary,Alberta,Canada,"Banff World Media Festival",,,2019-06-20,99000.00,99000.00,Contribution,"Promotion Program",
2019-2020,P1,"Canadian Film Institute",Ottawa,Ontario,Canada,"The Ottawa International Animation Festival",,,2019-06-18,44002.00,44002.00,Contribution,"Promotion Program",
2019-2020,P1,"Conquering Lion Pictures Inc.",Toronto,Ontario,Canada,Rude,,,2019-06-17,1500.00,1500.00,Contribution,"International Marketing Program",
2019-2020,P1,"Productions l'unit� centrale inc.",Montreal,Quebec,Canada,"Ville Neuve",,,2019-06-20,1500.00,1500.00,Contribution,"International Marketing Program",
2019-2020,P1,"Gimli Film Festival Inc.",Gimli,Manitoba,Canada,"Gimli Film Festival 2019",,,2019-06-20,16223.00,16223.00,Contribution,"Promotion Program",
2019-2020,P3,"Victoria Independent Film and Video Festival",Victoria,"British Columbia",Canada,"Victoria Film Festival and Springboard",,,2019-11-18,32445.00,32445.00,Contribution,"Promotion Program",
2019-2020,P2,"Films S�ville Inc. (Les)",Montreal,Quebec,Canada,"La femme de mon fr�re",French,,2019-07-10,125350.00,125350.00,Advance,"Marketing Program",
2019-2020,P2,"MMM Film Finance International Ltd.",Surrey,"British Columbia",Canada,"The Fusion Generation",English,,2019-08-09,25000.00,25000.00,Advance,"Marketing Program",
2019-2020,P3,"BHG Productions Inc.",Toronto,Ontario,Canada,"The Broken Heart Gallery",English,Comedy,2019-10-11,4000000.00,4000000.00,Investment,"Production Program",
2019-2020,P1,"Rob Heydon Holdings Inc.","Stoney Creek",Ontario,Canada,"The Huntress",,,2019-06-20,1500.00,1500.00,Contribution,"International Marketing Program",
2019-2020,P2,"Microscope Inc.",Montreal,Quebec,Canada,"Les oiseaux ivres",French,Drama,2019-09-03,1600000.00,1600000.00,Investment,"Production Program",
2019-2020,P2,"Open Roof Films Entertainment",Toronto,Ontario,Canada,"Open Roof Festival 2019",,,2019-07-23,10000.00,10000.00,Contribution,"Promotion Program",
2019-2020,P2,"SURTSEY FILMS SL",Arroyomolinos,,Spain,GENESE,English,,2019-07-03,43000.00,43000.00,Contribution,"Export Assistance Program",
2019-2020,P3,"Films S�ville Inc. (Les)",Montreal,Quebec,Canada,"Matthias et Maxime",,,2019-11-12,25000.00,25000.00,Contribution,"International Marketing Program",
2019-2020,P3,"Elevation Pictures Corp.",Toronto,Ontario,Canada,"The Hummingbird Project",English,Thriller,2019-10-04,421005.00,421005.00,Advance,"Marketing Program",
2019-2020,P1,"Pictou Twist Pictures Inc.",Halifax,"Nova Scotia",Canada,"Bogota Audiovisual Market 2019",,,2019-06-27,1500.00,1500.00,Contribution,"International Marketing Program",
2019-2020,P2,"Les Films Opale Inc.",Montreal,Quebec,Canada,"Vivre  100 milles � l'heure",French,,2019-09-09,115760.00,115760.00,Advance,"Marketing Program",
2019-2020,P2,"The Vancouver Out On Screen Film and Video Society",Vancouver,"British Columbia",Canada,"Vancouver Queer Film Festival",,,2019-07-18,5000.00,5000.00,Contribution,"Promotion Program",
2019-2020,P2,"Creative Artisans Media Inc.",Toronto,Ontario,Canada,Encerradas,,,2019-07-03,1500.00,1500.00,Contribution,"International Marketing Program",
2019-2020,P3,"Rencontres internationales du documentaire de Montr�al",Montreal,Quebec,Canada,"Rencontres internationales du documentaire de Montr�al",,,2019-10-03,90330.00,90330.00,Contribution,"Promotion Program",
2019-2020,P3,"Rencontres internationales du documentaire de Montr�al",Montreal,Quebec,Canada,"Rencontres internationales du documentaire de Montr�al",,,2019-12-05,92330.00,90330.00,Contribution,"Promotion Program","Amended Contract Signed 03-Oct-2019"
2019-2020,P2,"Yorkton Short Film and Video Festival Inc.",Yorkton,Saskatchewan,Canada,"Yorkton Film Festival",,,2019-07-18,22045.00,22045.00,Contribution,"Promotion Program",
2019-2020,P2,"9699961 Canada Inc.",Toronto,Ontario,Canada,SIGIL,,,2019-07-03,1500.00,1500.00,Contribution,"International Marketing Program",
2019-2020,P2,"Elgin Road Productions Ltd.",Victoria,"British Columbia",Canada,"Throwback Thursday",,,2019-08-29,1500.00,1500.00,Contribution,"International Marketing Program",
2019-2020,P3,"St. John's International Women's Film Festival, Inc.","St. John's",Newfoundland/Labrador,Canada,"St. John's International Women's Film Festival",,,2019-10-04,23260.00,23260.00,Contribution,"Promotion Program",
2019-2020,P2,"Carbon Arc Cinema Co-op Ltd.",Halifax,"Nova Scotia",Canada,"Animation Festival of Halifax",,,2019-07-02,2500.00,2500.00,Contribution,"Promotion Program",
2019-2020,P2,"Ontario Media Development Corporation (OMDC) / Soci�t� de d�veloppement de l'industrie cin�matographique ontarienne",Toronto,Ontario,Canada,"International Financing Forum (IFF) at TIFF",,,2019-07-02,18600.00,18600.00,Contribution,"Promotion Program",
2019-2020,P2,"Whistler Film Festival Society",Whistler,"British Columbia",Canada,"Whistler Film Festival & Content Summit",,,2019-07-24,82853.00,82853.00,Contribution,"Promotion Program",
2019-2020,P2,"High Definition Pictures Inc.",Winnipeg,Manitoba,Canada,"Juliana & The Medicine Fish",,,2019-08-09,1500.00,1500.00,Contribution,"International Marketing Program",
2019-2020,P2,"9399-7328 Qu�bec Inc",Montreal,Quebec,Canada,Passage,French,Documentary,2019-09-09,125000.00,125000.00,Contribution,"Talent To Watch Program",
2019-2020,P2,"Caribbean Tales",Toronto,Ontario,Canada,Hero,,,2019-07-09,1500.00,1500.00,Contribution,"International Marketing Program",
2019-2020,P2,"Hot Docs",Toronto,Ontario,Canada,"Hot Docs Festival and Market",,,2019-07-22,350000.00,350000.00,Contribution,"Promotion Program",
2019-2020,P2,Paraloeil,Rimouski,Quebec,Canada,"Cin�ma Paraloeil - du cin�ma qui nous regarde",,,2019-08-20,8140.00,8140.00,Contribution,"Promotion Program",
2019-2020,P2,"Association des cin�mas parall�les du Qu�bec",Montreal,Quebec,Canada,"ACPQ R�SEAU PLUS",,,2019-07-11,102743.00,102743.00,Contribution,"Promotion Program",
2019-2020,P2,"Silvertrust Communications Inc.",Toronto,Ontario,Canada,"FINDING ZENDAYA",,,2019-07-03,1500.00,1500.00,Contribution,"International Marketing Program",
2019-2020,P2,"Mixtape SB Productions Inc.",Toronto,Ontario,Canada,Slash/Back,English,"Science fiction/Fantasy/Tale",2019-07-22,150000.00,150000.00,Advance,"Production Program",
2019-2020,P3,"Mixtape SB Productions Inc.",Toronto,Ontario,Canada,Slash/Back,English,"Science fiction/Fantasy/Tale",2019-10-25,0.00,150000.00,Advance,"Production Program","Amended Contract Signed 22-Jul-2019"
2019-2020,P3,"Mixtape SB Productions Inc.",Toronto,Ontario,Canada,Slash/Back,English,"Science fiction/Fantasy/Tale",2019-10-25,150000.00,0.00,Investment,"Production Program","Amended Contract Signed 22-Jul-2019"
2019-2020,P3,"Sugar Films Inc.",Winnipeg,Manitoba,Canada,Intersection,English,Drama,2019-10-29,125000.00,125000.00,Contribution,"Talent To Watch Program",
2019-2020,P3,"Fondation Qu�bec cin�ma",Montreal,Quebec,Canada,"Gala Qu�bec Cin�ma",,,2019-12-13,402144.00,402144.00,Contribution,"Promotion Program",
2019-2020,P2,"Lowenbe Holdings Ltd.","Glen Haven","Nova Scotia",Canada,"Trans Atlantic Partners 2019",,,2019-07-19,25000.00,25000.00,Contribution,"Promotion Program",
2019-2020,P2,"Terres en vues / Soci�t� pour la diffusion de la culture autochtone",Montreal,Quebec,Canada,"Festival Pr�sence autochtone",,,2019-09-09,18166.00,18166.00,Contribution,"Promotion Program",
2019-2020,P2,"Toronto International Film Festival Inc.",Toronto,Ontario,Canada,"Toronto International Film Festival",,,2019-09-03,977710.00,977710.00,Contribution,"Promotion Program",
2019-2020,P2,"Maison 4:3 Inc.",Montreal,Quebec,Canada,"Jeune Juliette",French,,2019-07-25,179075.00,179075.00,Advance,"Marketing Program",
2019-2020,P3,"Quickening Film Inc.",Toronto,Ontario,Canada,Quickening,English,Drama,2019-10-24,125000.00,125000.00,Contribution,"Talent To Watch Program",
2019-2020,P2,"Canop�e Productions 2 Inc.",Chicoutimi,Quebec,Canada,"L� o� tout se rassemble",French,Documentary,2019-09-06,125000.00,125000.00,Contribution,"Talent To Watch Program",
2019-2020,P2,"136469 Canada Limited o/a Sphinx Productions",Toronto,Ontario,Canada,"Carmine Street Guitars",,,2019-07-24,1500.00,1500.00,Contribution,"International Marketing Program",
2019-2020,P2,"TAK FILMS INC.",Montreal,Quebec,Canada,Gabor,French,Documentary,2019-08-16,125000.00,125000.00,Contribution,"Talent To Watch Program",
2019-2020,P2,"Slag Pile Films Ltd.",Vancouver,"British Columbia",Canada,Anyox,English,Documentary,2019-09-03,125000.00,125000.00,Contribution,"Talent To Watch Program",
2019-2020,P2,"Cin�math�que Qu�b�coise",Montreal,Quebec,Canada,"Les Sommets du cin�ma d'animation",,,2019-09-04,10000.00,10000.00,Contribution,"Promotion Program",
2019-2020,P3,"White Pine Pictures Inc.",Toronto,Ontario,Canada,"Once Were Brothers: Robbie Robertson and The Band",English,,2019-10-10,50000.00,50000.00,Advance,"Marketing Program",
2019-2020,P2,"Good Deed Entertainment, llc",Ashland,Ohio,"United States",Firecrackers,English,,2019-08-16,31000.00,31000.00,Contribution,"Export Assistance Program",
2019-2020,P2,"Food for the Rest of Us Ltd.",Yellowknife,"North West Territories",Canada,"Food for the Rest of Us",English,Documentary,2019-08-15,125000.00,125000.00,Contribution,"Talent To Watch Program",
2019-2020,P3,"1459479 Alberta Inc. dba Raging River Productions",Calgary,Alberta,Canada,"April in Autumn",English,,2019-10-10,20000.00,20000.00,Advance,"Marketing Program",
2019-2020,P3,"Stigma Free Productions LTD.",Victoria,"British Columbia",Canada,"Best Friend Me",English,Comedy,2019-10-25,105000.00,105000.00,Contribution,"Talent To Watch Program",
2019-2020,P2,"Greater Vancouver International Film Festival Society",Vancouver,"British Columbia",Canada,"Vancouver International Film Festival",,,2019-07-31,242172.00,242172.00,Contribution,"Promotion Program",
2019-2020,P3,"Toronto Reel Asian International Film Festival",Toronto,Ontario,Canada,"Toronto Reel Asian International Film Festival",,,2019-10-29,27978.00,27978.00,Contribution,"Promotion Program",
2019-2020,P3,"Dog Pound Productions Inc.","Antigonish County","Nova Scotia",Canada,"I am Syd Stone",English,Drama,2019-10-29,125000.00,125000.00,Contribution,"Talent To Watch Program",
2019-2020,P3,"Boyer Thomas Productions Inc.",Winnipeg,Manitoba,Canada,"Coffee Express (Working Title)",English,Drama,2019-11-13,125000.00,125000.00,Contribution,"Talent To Watch Program",
2019-2020,P3,"Framing Agnes Inc.",Toronto,Ontario,Canada,"Framing Agnes",English,Documentary,2019-11-04,125000.00,125000.00,Contribution,"Talent To Watch Program",
2019-2020,P2,"Back Home Productions Inc.",Vancouver,"British Columbia",Canada,"Back Home",English,Documentary,2019-09-17,125000.00,125000.00,Contribution,"Talent To Watch Program",
2019-2020,P2,"Academy Of Canadian Cinema And Television - Acad�mie Canadienne du Cin�ma et de la T�l�vision",Toronto,Ontario,Canada,"Canadian Screen Awards",,,2019-07-30,360511.00,360511.00,Contribution,"Promotion Program",
2019-2020,P3,"Experimental Forest Films Inc.",Vancouver,"British Columbia",Canada,Invasion,,,2019-10-16,1500.00,1500.00,Contribution,"International Marketing Program",
2019-2020,P2,"1171803B.C. LTD.","Port Mcneill","British Columbia",Canada,Spiral,,,2019-08-13,1500.00,1500.00,Contribution,"International Marketing Program",
2019-2020,P3,"OAK TREE FILMS INC.",Scarborough,Ontario,Canada,"The Oak Tree",English,Drama,2019-11-27,125000.00,125000.00,Contribution,"Talent To Watch Program",
2019-2020,P2,"Canadian Media Producers Association - Association canadienne de la production m�diatique",Toronto,Ontario,Canada,"VIFF IMMERSED",,,2019-08-22,20000.00,20000.00,Contribution,"Promotion Program",
2019-2020,P3,"9401-1863 Qu�bec Inc.",Montreal,Quebec,Canada,Zipolito,French,Documentary,2019-10-07,125000.00,125000.00,Contribution,"Talent To Watch Program",
2019-2020,P3,"9402-0492 Qu�bec inc.",Montreal,Quebec,Canada,"Cette maison",French,Documentary,2019-11-27,125000.00,125000.00,Contribution,"Talent To Watch Program",
2019-2020,P3,"TRYNTON CINEMA INC.",Surrey,"British Columbia",Canada,"The Certainty of Symmetry",English,Drama,2019-10-18,125000.00,125000.00,Contribution,"Talent To Watch Program",
2019-2020,P2,"Funfilm Distribution Inc.",Montreal,Quebec,Canada,"Soleils noirs",French,Documentary,2019-09-10,15000.00,15000.00,Advance,"Marketing Program",
2019-2020,P2,"Festival Fantasia",Montreal,Quebec,Canada,"Festival Fantasia incluant Fronti�res",,,2019-07-25,226719.00,226719.00,Contribution,"Promotion Program",
2019-2020,P3,"Antoine Bourges Films Ltd.",Toronto,Ontario,Canada,"Concrete Valley",English,Drama,2019-11-06,125000.00,125000.00,Contribution,"Talent To Watch Program",
2019-2020,P3,"2705616 Ontario Inc.",Brampton,Ontario,Canada,Verona,English,Drama,2019-11-08,125000.00,125000.00,Contribution,"Talent To Watch Program",
2019-2020,P3,"Doubles With Slight Pepper Inc.",Toronto,Ontario,Canada,"Doubles with Slight Pepper",English,Drama,2019-11-06,125000.00,125000.00,Contribution,"Talent To Watch Program",
2019-2020,P3,"NonStop Entertainment AB",Stockholm,,Sweden,"The Hummingbird Project",English,,2019-10-10,42000.00,42000.00,Contribution,"Export Assistance Program",
2019-2020,P3,"Whale Movie Incorporated",Williamswood,"Nova Scotia",Canada,"Whale Sanctuary Project",English,Documentary,2019-11-19,125000.00,125000.00,Contribution,"Talent To Watch Program",
2019-2020,P3,"Switch Hitter Films Incorporated",Toronto,Ontario,Canada,"Erin's Guide to Kissing Girls",English,Comedy,2019-11-08,125000.00,125000.00,Contribution,"Talent To Watch Program",
2019-2020,P3,"Lunenburg Doc Fest Association",Lunenburg,"Nova Scotia",Canada,"Lunenburg Doc Fest",,,2019-10-07,2500.00,2500.00,Contribution,"Promotion Program",
2019-2020,P2,"Festival du nouveau cin�ma de Montr�al",Montreal,Quebec,Canada,"Festival du nouveau cin�ma de Montr�al",,,2019-09-09,183031.00,183031.00,Contribution,"Promotion Program",
2019-2020,P2,"Course Estrie",Sherbrooke,Quebec,Canada,"Course des R�gions pancanadienne (prix �mergent)",,,2019-08-13,40000.00,40000.00,Contribution,"Promotion Program",
2019-2020,P2,"Creative Women Workshops Association","North Vancouver","British Columbia",Canada,"Women In the Director's Chair - WIDC 2020",,,2019-08-29,50000.00,50000.00,Contribution,"Promotion Program",
2019-2020,P3,"The Centre for Aboriginal Media (Ontario)",Toronto,Ontario,Canada,"imagineNATIVE Film + Media Arts Festival",,,2019-11-21,51223.00,51223.00,Contribution,"Promotion Program",
2019-2020,P3,"Visions Ouest Productions",Vancouver,"British Columbia",Canada,"Rendez-vous du cin�ma qu�b�cois et francophone de Vancouver",,,2019-11-14,13132.00,13132.00,Contribution,"Promotion Program",
2019-2020,P3,"Fluent Films Inc.",Montreal,Quebec,Canada,"The Day Between",,,2019-12-04,1500.00,1500.00,Contribution,"International Marketing Program",
2019-2020,P2,"KRH film Inc.",Montreal,Quebec,Canada,"The G",,,2019-08-07,1500.00,1500.00,Contribution,"International Marketing Program",
2019-2020,P3,"Productions du Rapide-Blanc Inc. (Les)",Montreal,Quebec,Canada,"LE MONDE SELON AMAZON",French,Documentary,2019-11-29,10000.00,10000.00,Advance,"Marketing Program",
2019-2020,P2,"775 Media Corp.",Calgary,Alberta,Canada,Harpoon,,,2019-08-16,1500.00,1500.00,Contribution,"International Marketing Program",
2019-2020,P2,"Inmate Productions Inc.",Edmonton,Alberta,Canada,"Inmate#1 The Rise Of Danny Trejo",,,2019-08-12,5000.00,5000.00,Contribution,"International Marketing Program",
2019-2020,P3,"Cin�mental inc.",Winnipeg,Manitoba,Canada,Cin�mental,,,2019-11-19,4046.00,4046.00,Contribution,"Promotion Program",
2019-2020,P3,"Intuitive Pictures Inc.",Montreal,Quebec,Canada,"The Bones",,,2019-10-31,1500.00,1500.00,Contribution,"International Marketing Program",
2019-2020,P3,"Level Film Inc.",Toronto,Ontario,Canada,"The Body Remembers When the World Broke Open",English,,2019-10-04,42075.00,42075.00,Advance,"Marketing Program",
2019-2020,P2,"ORGANISATION COMMUNICATIONS ET SOCI�T� OCS INC.",Montreal,Quebec,Canada,Cin�cole,,,2019-08-30,20000.00,20000.00,Contribution,"Promotion Program",
2019-2020,P2,"Voyelles Films Productions inc.",Montreal,Quebec,Canada,Delphine,,,2019-08-22,2500.00,2500.00,Contribution,"International Marketing Program",
2019-2020,P3,"Island Media Arts Co-Operative Limited",Charlottetown,"Prince Edward Island",Canada,"Film 4Ward",,,2019-12-18,15000.00,15000.00,Contribution,"Promotion Program",
2019-2020,P3,"Raven Banner Releasing Inc.",Toronto,Ontario,Canada,Kingsway,English,,2019-10-25,25000.00,25000.00,Advance,"Marketing Program",
2019-2020,P2,"Osaka Sunset Pictures Inc",Toronto,Ontario,Canada,"Speak No Evil",,,2019-09-06,1500.00,1500.00,Contribution,"International Marketing Program",
2019-2020,P3,"Female Eye Film Festival (The)",Woodbridge,Ontario,Canada,"Female Eye Film Festival",,,2019-12-16,5000.00,5000.00,Contribution,"Promotion Program",
2019-2020,P2,"Guest of Honour Films Inc.",Toronto,Ontario,Canada,"Guest of Honour",,,2019-09-24,25000.00,25000.00,Contribution,"International Marketing Program",
2019-2020,P3,"Black Dog Films Inc.",Halifax,"Nova Scotia",Canada,"Halloween Party",,,2019-10-17,1500.00,1500.00,Contribution,"International Marketing Program",
2019-2020,P2,"Axia Films inc.",Montreal,Quebec,Canada,"PAUVRE GEORGES",French,Drama,2019-09-11,20250.00,20250.00,Advance,"Marketing Program",
2019-2020,P2,"Calgary International Film Festival Society",Calgary,Alberta,Canada,"Calgary International Film Festival",,,2019-08-29,42038.00,42038.00,Contribution,"Promotion Program",
2019-2020,P3,"Atlantic Filmmakers Cooperative Limited",Halifax,"Nova Scotia",Canada,"FILM 5 and the Halifax Independent Filmmakers Festival",,,2019-11-21,26000.00,26000.00,Contribution,"Promotion Program",
2019-2020,P3,"Level Film Inc.",Toronto,Ontario,Canada,"White Lie",English,,2019-12-18,34237.00,34237.00,Advance,"Marketing Program",
2019-2020,P3,"LIGNE 7 SAS",Tourcoing,,France,"Jeune Juliette",French,,2019-10-29,36000.00,36000.00,Contribution,"Export Assistance Program",
2019-2020,P3,"Entract Films Inc.",Montreal,Quebec,Canada,"Les barbares de la Malbaie",French,Comedy,2019-11-27,180000.00,180000.00,Advance,"Marketing Program",
2019-2020,P3,"Kino Lorber Inc.","New York","New York","United States",Anthropocene,English,,2019-10-15,33000.00,33000.00,Contribution,"Export Assistance Program",
2019-2020,P3,"Cin�sam Inc.",Montreal,Quebec,Canada,SAM,French,Drama,2019-10-02,660000.00,660000.00,Advance,"Production Program",
2019-2020,P2,"Planet in Focus: International Environmental Film & Video Festival",Toronto,Ontario,Canada,"Planet in Focus International Environmental Film Festival",,,2019-08-27,3000.00,3000.00,Contribution,"Promotion Program",
2019-2020,P2,"National Screen Institute - Canada",Winnipeg,Manitoba,Canada,"National Screen Institute - Canada (NSI) Training Programs",,,2019-09-23,229500.00,229500.00,Contribution,"Promotion Program",
2019-2020,P3,"9224-4938 Qu�bec Inc.",Montreal,Quebec,Canada,"La contemplation du myst�re",French,Thriller,2019-10-22,750000.00,750000.00,Investment,"Production Program",
2019-2020,P3,"Visaff South Asian Film Festival Society",Surrey,"British Columbia",Canada,VISAFF,,,2019-10-31,5000.00,5000.00,Contribution,"Promotion Program",
2019-2020,P3,"Front des r�alisateurs ind�pendants du Canada (FRIC)",Ottawa,Ontario,Canada,"Initiatives du FRIC pour les r�alisateurs issus des CLOSM",,,2019-10-31,20000.00,20000.00,Contribution,"Promotion Program",
2019-2020,P2,"Item 7 Inc.",Montreal,Quebec,Canada,"Maria Chapdelaine",French,"Historical Drama",2019-09-04,150000.00,150000.00,Advance,"Production Program",
2019-2020,P3,"Global Visions Festival Society",Edmonton,Alberta,Canada,"NorthwestFest International Documentary Festival",,,2019-12-17,5000.00,5000.00,Contribution,"Promotion Program",
2019-2020,P2,"K.O. 24 Inc.",Montreal,Quebec,Canada,"Le guide de la famille parfaite",French,Comedy,2019-09-06,360000.00,360000.00,Advance,"Production Program",
2019-2020,P3,"Productions l'unit� centrale inc.",Montreal,Quebec,Canada,D�rive,,,2019-11-04,1500.00,1500.00,Contribution,"International Marketing Program",
2019-2020,P3,"Fondation Fabienne Colas",Saint-Lambert,Quebec,Canada,"Festival International du Film Black de Montr�al",,,2019-12-03,25000.00,25000.00,Contribution,"Promotion Program",
2019-2020,P3,"Maison 4:3 Inc.",Montreal,Quebec,Canada,"ALEXANDRE LE FOU",French,,2019-10-01,20000.00,20000.00,Advance,"Marketing Program",
2019-2020,P3,"Films Outsiders Inc. (Les)",Verdun,Quebec,Canada,"Il pleuvait des oiseaux",,,2019-10-04,10000.00,10000.00,Contribution,"International Marketing Program",
2019-2020,P3,"Axia Films inc.",Montreal,Quebec,Canada,"APAPACHO UNE CARESSE POUR L'�ME",French,Drama,2019-10-21,40000.00,40000.00,Advance,"Marketing Program",
2019-2020,P2,"Les films Primatice Inc.",Montreal,Quebec,Canada,"Mont Foster",,,2019-09-25,3200.00,3200.00,Contribution,"International Marketing Program",
2019-2020,P3,"Filmoption International Inc.",Westmount,Quebec,Canada,KUESSIPAN,French,,2019-10-22,150000.00,150000.00,Advance,"Marketing Program",
2019-2020,P3,"Funny Boy Productions Inc.",Toronto,Ontario,Canada,"Funny Boy",English,Drama,2019-10-02,250000.00,250000.00,Advance,"Production Program",
2019-2020,P3,"Funny Boy Productions Inc.",Toronto,Ontario,Canada,"Funny Boy",English,Drama,2019-10-23,0.00,250000.00,Advance,"Production Program","Amended Contract Signed 02-Oct-2019"
2019-2020,P3,"Funny Boy Productions Inc.",Toronto,Ontario,Canada,"Funny Boy",English,Drama,2019-10-23,250000.00,0.00,Investment,"Production Program","Amended Contract Signed 02-Oct-2019"
2019-2020,P3,"Colonelle films inc.",Montreal,Quebec,Canada,"FLEUR BLEUE",,,2019-10-04,1500.00,1500.00,Contribution,"International Marketing Program",
2019-2020,P3,"Western Arctic Moving Pictures",Yellowknife,"North West Territories",Canada,"The Yellowknife International Film Festival",,,2019-10-21,5000.00,5000.00,Contribution,"Promotion Program",
2019-2020,P3,"Crazy8s Film Society",Vancouver,"British Columbia",Canada,"Crazy8s 2020",,,2019-11-14,20000.00,20000.00,Contribution,"Promotion Program",
2019-2020,P3,"STUDIOS DATSIT INTERNATIONAL INC.",Montreal,Quebec,Canada,Antigone,,,2019-11-05,5700.00,5700.00,Contribution,"International Marketing Program",
2019-2020,P3,"STUDIOS DATSIT INTERNATIONAL INC.",Montreal,Quebec,Canada,Fabuleuses,,,2019-11-05,4200.00,4200.00,Contribution,"International Marketing Program",
2019-2020,P3,"Good Deed Entertainment, llc",Ashland,Ohio,"United States","Riot Girls",English,,2019-11-21,44000.00,44000.00,Contribution,"Export Assistance Program",
2019-2020,P3,"Experimental Forest Films Inc.",Vancouver,"British Columbia",Canada,"The Body Remembers When the World Broke Open",,,2019-10-21,1500.00,1500.00,Contribution,"International Marketing Program",
2019-2020,P3,"Maison 4:3 Inc.",Montreal,Quebec,Canada,"UNE MANI�RE DE VIVRE",French,,2019-11-12,50000.00,50000.00,Advance,"Marketing Program",
2019-2020,P3,"Jim At The Hotel Productions Ltd.",Vancouver,"British Columbia",Canada,Daughter,,,2019-11-28,3200.00,3200.00,Contribution,"International Marketing Program",
2019-2020,P3,"SMI Film Society",Vancouver,"British Columbia",Canada,"Good Pitch Vancouver",,,2019-11-05,5000.00,5000.00,Contribution,"Promotion Program",
2019-2020,P3,"Festival International de Musique POP Montr�al",Montreal,Quebec,Canada," POP Montr�al",,,2019-11-15,5000.00,5000.00,Contribution,"Promotion Program",
2019-2020,P2,"Guest of Honour Films Inc.",Toronto,Ontario,Canada,"Guest of Honour",,,2019-09-24,1500.00,1500.00,Contribution,"International Marketing Program",
2019-2020,P3,"Conquering Lion Pictures Inc.",Toronto,Ontario,Canada,"Four Queens",,,2019-10-03,1500.00,1500.00,Contribution,"International Marketing Program",
2019-2020,P3,"GESTION CTVM + WEB INC",Outremont,Quebec,Canada," Promotion et visibilit� de T�l�film Canada sur CTVM.info",,,2019-11-15,23000.00,23000.00,Contribution,"Promotion Program",
2019-2020,P3,"Corporation Wapikoni Mobile",Montreal,Quebec,Canada,"Initiatives du Wapikoni",,,2019-10-18,50000.00,50000.00,Contribution,"Promotion Program",
2019-2020,P3,"Filmoption International Inc.",Westmount,Quebec,Canada,"LES FLEURS OUBLI�ES",French,,2019-11-08,150000.00,150000.00,Advance,"Marketing Program",
2019-2020,P3,"Isuma Distribution International Ltd.",Montreal,Quebec,Canada,"Restless River",English,Drama,2019-12-20,150000.00,150000.00,Advance,"Marketing Program",
2019-2020,P3,"Fragments Distribution Inc.",Montreal,Quebec,Canada,CHAAKAPESH,French,Documentary,2019-12-20,30000.00,30000.00,Advance,"Marketing Program",
2019-2020,P3,"Productions l'unit� centrale inc.",Montreal,Quebec,Canada,"Vie d'un grand r�alisateur",,,2019-11-05,1500.00,1500.00,Contribution,"International Marketing Program",
2019-2020,P3,"Association coop�rative de productions audio-visuelles",Montreal,Quebec,Canada,"LE DERNIER REPAS",,,2019-10-29,1500.00,1500.00,Contribution,"International Marketing Program",
2019-2020,P3,"STUDIOS DATSIT INTERNATIONAL INC.",Montreal,Quebec,Canada,"Mafia inc.",,,2019-10-25,3200.00,3200.00,Contribution,"International Marketing Program",
2019-2020,P3,"9353-8361 Qu�bec Inc.",Montreal,Quebec,Canada,"The Forbidden Reel",English,Documentary,2019-11-19,5000.00,5000.00,Contribution,"International Marketing Program",
2019-2020,P3,"Blood in the Snow Canadian Film Festival",Toronto,Ontario,Canada,"Blood in the Snow Film Festival 2019",,,2019-11-04,5000.00,5000.00,Contribution,"Promotion Program",
2019-2020,P3,"Films S�ville Inc. (Les)",Montreal,Quebec,Canada,"Matthias & Maxime",French,,2019-12-12,237277.00,237277.00,Advance,"Marketing Program",
2019-2020,P3,"Fella Films Inc.",Ottawa,Ontario,Canada,"Geezers Need Excitement",English,Action/Adventure,2019-10-21,45000.00,45000.00,Advance,"Development Program",
2019-2020,P3,"Euclid 431 Pictures Inc.",Toronto,Ontario,Canada,Acorn,English,Drama,2019-11-07,30000.00,30000.00,Advance,"Development Program",
2019-2020,P3,Cin�franco,Toronto,Ontario,Canada,Cin�franco,,,2019-10-21,10815.00,10815.00,Contribution,"Promotion Program",
2019-2020,P3,"New Brunswick Filmmakers Co-operative Limited",Fredericton,"New Brunswick",Canada,"Silver Wave Film Festival",,,2019-11-06,3000.00,3000.00,Contribution,"Promotion Program",
2019-2020,P3,"Maison 4:3 Inc.",Montreal,Quebec,Canada,"Le rire",French,Drama,2019-12-17,62455.00,62455.00,Advance,"Marketing Program",
2019-2020,P3,"Vancouver Asian Film Festival Society",Vancouver,"British Columbia",Canada,"Vancouver Asian Film Festival",,,2019-11-04,5000.00,5000.00,Contribution,"Promotion Program",
2019-2020,P3,"Acad�mie canadienne du cin�ma et de la t�l�vision (section Qu�bec) Inc.",Montreal,Quebec,Canada,"Prix G�meaux/Party des 1000",,,2019-12-19,136250.00,136250.00,Contribution,"Promotion Program",
2019-2020,P3,"P�riph�ria Productions Inc.",Montreal,Quebec,Canada,"12 Images/seconde",French,Comedy,2019-11-19,20000.00,20000.00,Advance,"Development Program",
2019-2020,P3,"Kino Lorber Inc.","New York","New York","United States","THE WOMAN WHO LOVES GIRAFFES",English,,2019-11-05,44000.00,44000.00,Contribution,"Export Assistance Program",
2019-2020,P3,"Festival Pleins �crans",Montreal,Quebec,Canada,"Festival Plein(s) �cran(s)",,,2019-11-15,20000.00,20000.00,Contribution,"Promotion Program",
2019-2020,P3,"C&Y Cinema Ltd.",Toronto,Ontario,Canada,"MS Slavic 7",,,2019-11-13,1500.00,1500.00,Contribution,"International Marketing Program",
2019-2020,P3,"Mythic Productions Inc.","Richmond Hill",Ontario,Canada,"From the Vine",,,2019-11-14,5000.00,5000.00,Contribution,"International Marketing Program",
2019-2020,P3,"AMF Productions Inc.",Vancouver,"British Columbia",Canada,"SHANGHAI FOLLIES",English,"Historical Drama",2019-12-19,15000.00,15000.00,Advance,"Development Program",
2019-2020,P3,"AMF Productions Inc.",Vancouver,"British Columbia",Canada,"CAN I GET A WITNESS?",English,"Science fiction/Fantasy/Tale",2019-12-19,25000.00,25000.00,Advance,"Development Program",
2019-2020,P3,"ATOMIC AUTUMN PRODUCTIONS INC.",Montreal,Quebec,Canada,"Best Sellers",English,Comedy,2019-10-29,250000.00,250000.00,Advance,"Production Program",
2019-2020,P3,"C&Y Cinema Ltd.",Toronto,Ontario,Canada,"MS Slavic 7",,,2019-11-13,1500.00,1500.00,Contribution,"International Marketing Program",
2019-2020,P3,"Colonelle films inc.",Montreal,Quebec,Canada,"FLEUR BLEUE",French,Drama,2019-12-13,20000.00,20000.00,Advance,"Development Program",
2019-2020,P3,"Jobro Productions Inc.",Toronto,Ontario,Canada,"The Black Donnelly's",English,"Historical Drama",2019-11-21,25000.00,25000.00,Advance,"Development Program",
2019-2020,P3,"Lyla Films Inc.",Montreal,Quebec,Canada,"Claude et Patricia",French,Drama,2019-11-28,47942.00,47942.00,Advance,"Development Program",
2019-2020,P3,"Lyla Films Inc.",Montreal,Quebec,Canada,"Retrouver ses esprits",French,"Science fiction/Fantasy/Tale",2019-11-28,17058.00,17058.00,Advance,"Development Program",
2019-2020,P3,"Aetios Productions Inc.",Saint-Sauveur,Quebec,Canada,"KARINE OLIVIER",French,Drama,2019-12-06,45000.00,45000.00,Advance,"Development Program",
2019-2020,P3,"Coop Vid�o de Montr�al",Montreal,Quebec,Canada,"Coll�ge la Macaza",French,"Historical Drama",2019-12-04,15000.00,15000.00,Advance,"Development Program",
2019-2020,P3,"Coop Vid�o de Montr�al",Montreal,Quebec,Canada,Shape,French,Horror,2019-12-04,17000.00,17000.00,Advance,"Development Program",
2019-2020,P3,"Coop Vid�o de Montr�al",Montreal,Quebec,Canada,"- 58 Celcius",French,Thriller,2019-12-04,18000.00,18000.00,Advance,"Development Program",
2019-2020,P3,"Item 7 Inc.",Montreal,Quebec,Canada,Fencing,English,Drama,2019-12-23,60000.00,60000.00,Advance,"Development Program",
2019-2020,P3,"Item 7 Inc.",Montreal,Quebec,Canada,Hellraft,English,Drama,2019-12-23,42000.00,42000.00,Advance,"Development Program",
2019-2020,P3,"Item 7 Inc.",Montreal,Quebec,Canada,"Inherited Night",English,Drama,2019-12-23,15000.00,15000.00,Advance,"Development Program",
2019-2020,P3,"Item 7 Inc.",Montreal,Quebec,Canada,Aquarica,English,"Science fiction/Fantasy/Tale",2019-12-23,98000.00,98000.00,Advance,"Development Program",
2019-2020,P3,"Metafilms Inc.",Montreal,Quebec,Canada,"Adam en d�pression",French,Comedy,2019-11-18,67000.00,67000.00,Advance,"Development Program",
2019-2020,P3,"Metafilms Inc.",Montreal,Quebec,Canada,"The Last Promenade",English,Documentary,2019-11-18,15000.00,15000.00,Advance,"Development Program",
2019-2020,P3,"Metafilms Inc.",Montreal,Quebec,Canada,"So Long, M",English,Drama,2019-11-18,55000.00,55000.00,Advance,"Development Program",
2019-2020,P3,"Metafilms Inc.",Montreal,Quebec,Canada,"Un �t� comme �a",French,Drama,2019-11-18,63000.00,63000.00,Advance,"Development Program",
2019-2020,P3,"Yukon Film Society",Whitehorse,Yukon,Canada,"Available Light Film Festival",,,2019-11-20,8813.00,8813.00,Contribution,"Promotion Program",
2019-2020,P3,"Association des propri�taires de cin�mas du Qu�bec",Terrebonne,Quebec,Canada,"APCQ - Souper annuel",,,2019-11-26,5000.00,5000.00,Contribution,"Promotion Program",
2019-2020,P3,"Rhombus Media Inc.",Toronto,Ontario,Canada,"Child's Play",English,Drama,2019-12-19,48588.00,48588.00,Advance,"Development Program",
2019-2020,P3,"Rhombus Media Inc.",Toronto,Ontario,Canada,"More To Come",English,Drama,2019-12-19,45199.00,45199.00,Advance,"Development Program",
2019-2020,P3,"Rhombus Media Inc.",Toronto,Ontario,Canada,"The Falling Man",English,Drama,2019-12-19,90664.00,90664.00,Advance,"Development Program",
2019-2020,P3,"Rhombus Media Inc.",Toronto,Ontario,Canada,Chiller,English,Horror,2019-12-19,15549.00,15549.00,Advance,"Development Program",
2019-2020,P3,"Pitchblack Pictures Inc.",Burnaby,"British Columbia",Canada,"Crypt Crawlers",English,Drama,2019-11-28,28666.00,28666.00,Advance,"Development Program",
2019-2020,P3,"Pitchblack Pictures Inc.",Burnaby,"British Columbia",Canada,"The Ones That Got Away",English,Horror,2019-11-28,16800.00,16800.00,Advance,"Development Program",
2019-2020,P3,Kino'00,Montreal,Quebec,Canada,"Macro-Kino et Gala",,,2019-12-06,10000.00,10000.00,Contribution,"Promotion Program",
2019-2020,P3,"Oddfellows Entertainment Inc.",Vancouver,"British Columbia",Canada,"Tender Kisses",English,Horror,2019-12-11,24000.00,24000.00,Advance,"Development Program",
2019-2020,P3,"9215-8534 Qu�bec Inc. (Parallaxes)","Ste Famille",Quebec,Canada,"Farador, la suite",French,Comedy,2019-12-02,15000.00,15000.00,Advance,"Development Program",
2019-2020,P3,"9215-8534 Qu�bec Inc. (Parallaxes)","Ste Famille",Quebec,Canada,Pentimento,French,Mystery/Crime/Police,2019-12-02,15000.00,15000.00,Advance,"Development Program",
2019-2020,P3,"Christal Films Productions Inc.",Montreal,Quebec,Canada,Nicolet,French,Comedy,2019-12-18,50000.00,50000.00,Advance,"Development Program",
2019-2020,P3,"Christal Films Productions Inc.",Montreal,Quebec,Canada,"C'est moi le meilleur",French,Drama,2019-12-18,34000.00,34000.00,Advance,"Development Program",
2019-2020,P3,"Christal Films Productions Inc.",Montreal,Quebec,Canada,"Miss Sushi",French,Drama,2019-12-18,60000.00,60000.00,Advance,"Development Program",
2019-2020,P3,"Christal Films Productions Inc.",Montreal,Quebec,Canada,S'enfuir,French,"Historical Drama",2019-12-18,56000.00,56000.00,Advance,"Development Program",
2019-2020,P3,"David Gross Productions Inc.",Toronto,Ontario,Canada,"Deal of a Lifetime",English,Drama,2019-11-14,200000.00,200000.00,Advance,"Development Program",
2019-2020,P3,"Not A Bad Person Productions Inc.",Vancouver,"British Columbia",Canada,"Ash (I'm Not A Bad Person)",,,2019-12-11,1500.00,1500.00,Contribution,"International Marketing Program",
2019-2020,P3,"Dreamland Productions Inc.",Vancouver,"British Columbia",Canada,Dreamland,,,2019-12-16,1500.00,1500.00,Contribution,"International Marketing Program",
2019-2020,P3,"Attraction Images inc.",Montreal,Quebec,Canada,M.A.L.,French,Drama,2019-12-05,55000.00,55000.00,Advance,"Development Program",
2019-2020,P3,"Banana-Moon Sky Films Inc.",Toronto,Ontario,Canada,"James vs His Future Self",,,2019-11-25,3500.00,3500.00,Contribution,"International Marketing Program",
2019-2020,P3,"Max Films Inc.",Montreal,Quebec,Canada,"Hollis, Joan et Jean-Paul",French,Drama,2019-12-09,23000.00,23000.00,Advance,"Development Program",
2019-2020,P3,"Max Films Inc.",Montreal,Quebec,Canada,"La Portraitiste",French,Drama,2019-12-09,62000.00,62000.00,Advance,"Development Program",
2019-2020,P3,"Les Productions des Films de l'Autre Inc.",Montreal,Quebec,Canada,"La nuit noire m'a donn� des yeux noirs",French,Documentary,2019-12-09,17500.00,17500.00,Advance,"Development Program",
2019-2020,P3,"Les Productions des Films de l'Autre Inc.",Montreal,Quebec,Canada,"� pied d'hiver sur Montr�al endormi",French,Drama,2019-12-09,17500.00,17500.00,Advance,"Development Program",
2019-2020,P3,"Banger Films Inc.",Toronto,Ontario,Canada,"Untitled Jackie Shane Documentary",English,Documentary,2019-12-19,20000.00,20000.00,Advance,"Development Program",
2019-2020,P3,"Les Perc�ides, Festival international de cin�ma et d'art de Perc�",Perce,Quebec,Canada,"Festival international de cin�ma-Les Perc�ides",,,2019-12-10,5408.00,5408.00,Contribution,"Promotion Program",
2019-2020,P3,"Topsail Productions Limited",Halifax,"Nova Scotia",Canada,"My Scottish Father In Law",English,Comedy,2019-12-03,23558.00,23558.00,Advance,"Development Program",
2019-2020,P3,"Topsail Productions Limited",Halifax,"Nova Scotia",Canada,"Time Trip",English,Drama,2019-12-03,16441.00,16441.00,Advance,"Development Program",
2019-2020,P3,"Productions Sons of Manual Inc.",Montreal,Quebec,Canada,"Le Horla",French,Horror,2019-11-27,65000.00,65000.00,Advance,"Development Program",
2019-2020,P3,"Max Films M�dia Inc.",Montreal,Quebec,Canada,"LE FILS DU DICTATEUR",French,Mystery/Crime/Police,2019-12-02,30000.00,30000.00,Advance,"Development Program",
2019-2020,P3,"Aircraft Pictures Limited",Toronto,Ontario,Canada,"Stolen Warriors",English,Drama,2019-11-21,15000.00,15000.00,Advance,"Development Program",
2019-2020,P3,"Aircraft Pictures Limited",Toronto,Ontario,Canada,Sweep,English,Drama,2019-11-21,15000.00,15000.00,Advance,"Development Program",
2019-2020,P3,"Aircraft Pictures Limited",Toronto,Ontario,Canada,"Daughter of Bells",English,"Science fiction/Fantasy/Tale",2019-11-21,15000.00,15000.00,Advance,"Development Program",
2019-2020,P3,"Art et Essai Administration Inc.",Montreal,Quebec,Canada,"Une id�e de grandeur",French,Thriller,2019-11-19,20000.00,20000.00,Advance,"Development Program",
2019-2020,P3,"DCP Mystery Arts Inc.",Toronto,Ontario,Canada,"Breathe, Cry, Breathe",English,Drama,2019-12-17,15008.00,15008.00,Advance,"Development Program",
2019-2020,P3,"DCP Mystery Arts Inc.",Toronto,Ontario,Canada,"Will of Instinct",English,Drama,2019-12-17,61600.00,61600.00,Advance,"Development Program",
2019-2020,P3,"DCP Mystery Arts Inc.",Toronto,Ontario,Canada,"Dying Days",English,"Science fiction/Fantasy/Tale",2019-12-17,61600.00,61600.00,Advance,"Development Program",
2019-2020,P3,"DCP Mystery Arts Inc.",Toronto,Ontario,Canada,Brookfield,English,Thriller,2019-12-17,61792.00,61792.00,Advance,"Development Program",
2019-2020,P3,"Productions 10e Ave inc.",Saint-Augustin-de-Desmaures,Quebec,Canada,"Brad, le jamboree des g�nies",French,Comedy,2019-12-18,30000.00,30000.00,Advance,"Development Program",
2019-2020,P3,"Productions 10e Ave inc.",Saint-Augustin-de-Desmaures,Quebec,Canada,"Le vaisseau des temp�tes",French,"Science fiction/Fantasy/Tale",2019-12-18,35000.00,35000.00,Advance,"Development Program",
2019-2020,P3,"Echo Media Inc.",Montreal,Quebec,Canada,"Un film sur",French,Comedy,2019-12-20,24000.00,24000.00,Advance,"Development Program",
2019-2020,P3,"Echo Media Inc.",Montreal,Quebec,Canada,"RED SCARE",English,Thriller,2019-12-20,26000.00,26000.00,Advance,"Development Program",
2019-2020,P3,"Savath Pictures Inc.",Vancouver,"British Columbia",Canada,Bloom,English,"Science fiction/Fantasy/Tale",2019-12-11,20000.00,20000.00,Advance,"Development Program",
2019-2020,P3,"Prix coll�gial du cin�ma qu�b�cois",Montreal,Quebec,Canada,"Prix coll�gial du cin�ma qu�b�cois",,,2019-12-04,20000.00,20000.00,Contribution,"Promotion Program",
2019-2020,P3,"Productions Caramel Film Inc.",Montreal,Quebec,Canada,"La Cordonni�re",French,Drama,2019-11-25,150000.00,150000.00,Advance,"Production Program",
2019-2020,P3,"Babe Nation Creations Inc.",Toronto,Ontario,Canada,"The Rest Of Us",,,2019-12-02,1500.00,1500.00,Contribution,"International Marketing Program",
2019-2020,P3,"Women In Film & Television Toronto Inc.",Toronto,Ontario,Canada,"WIFT  Connect Mentorship Program",,,2019-11-26,20000.00,20000.00,Contribution,"Promotion Program",
2019-2020,P3,"Oakville Festivals of Film and Art",Oakville,Ontario,Canada,"Willson Oakville Film Festival",,,2019-12-24,5000.00,5000.00,Contribution,"Promotion Program",
2019-2020,P3,"Borrowed Light Films Inc.",Toronto,Ontario,Canada,"The Young Arsonists",,,2019-12-16,1500.00,1500.00,Contribution,"International Marketing Program",
2019-2020,P4,"Fire Song Films Inc.",Toronto,Ontario,Canada,"Fire Song",English,Drama,2020-03-24,15292.00,29906.00,Advance,"Marketing Program","Amended Contract Signed 21-Jul-2016"
2019-2020,P4,"Mongrel Media Inc.",Toronto,Ontario,Canada,Unless,English,Drama,2020-01-29,47588.00,76725.00,Advance,"Marketing Program","Amended Contract Signed 14-Mar-2017"
2019-2020,P4,"Foundry Films Inc.",Toronto,Ontario,Canada,"Far To Go",English,"Historical Drama",2020-03-25,18188.00,21571.00,Advance,"Development Program","Amended Contract Signed 22-Dec-2016"
2019-2020,P4,"Plausible Communications Corporation",Toronto,Ontario,Canada,Dragon,English,Drama,2020-03-11,40162.00,44292.00,Advance,"Development Program","Amended Contract Signed 29-Mar-2017"
2019-2020,P4,"Jobro Productions Inc.",Toronto,Ontario,Canada,"Red River Woman",English,Mystery/Crime/Police,2020-03-25,11135.00,15000.00,Advance,"Development Program","Amended Contract Signed 13-Mar-2017"
2019-2020,P4,"Screen Siren Pictures Inc.",Vancouver,"British Columbia",Canada,"The Widows' Club",English,Comedy,2020-03-27,13180.00,15000.00,Advance,"Development Program","Amended Contract Signed 07-Feb-2017"
2019-2020,P4,"Rhombus Media Inc.",Toronto,Ontario,Canada,"The Furies",English,Thriller,2020-03-26,2144262.00,2144262.00,Investment,"Production Program",
2019-2020,P4,"Productions Couzin Inc",Montreal,Quebec,Canada,"R�pertoire des villes disparues",French,"Science fiction/Fantasy/Tale",2020-02-20,778182.00,850000.00,Investment,"Production Program","Amended Contract Signed 09-Mar-2018"
2019-2020,P4,"Les Films 1976 Inc.",Montreal,Quebec,Canada,Saint-Narcisse,English,"Romantic Comedy",2020-03-19,360000.00,300000.00,Contribution,"Production Program","Amended Contract Signed 08-Mar-2019"
2019-2020,P4,"10619248 Canada Inc.",Montreal,Quebec,Canada,SLAXX,English,Horror,2020-03-19,425000.00,400000.00,Contribution,"Production Program","Amended Contract Signed 13-Feb-2019"
2019-2020,P4,"9393-9866 Qu�bec inc.",Montreal,Quebec,Canada,"Montreal Girls",English,Drama,2020-03-23,400000.00,300000.00,Investment,"Production Program","Amended Contract Signed 25-Mar-2019"
2019-2020,P4,"Midnight Blue Pictures Inc",Halifax,"Nova Scotia",Canada,"Night Blooms",English,Drama,2020-03-30,299500.00,262000.00,Contribution,"Production Program","Amended Contract Signed 12-Mar-2019"
2019-2020,P4,"Funfilm Distribution Inc.",Montreal,Quebec,Canada,Gen�se,French,Drama,2020-01-28,27196.00,30000.00,Advance,"Marketing Program","Amended Contract Signed 06-Feb-2019"
2019-2020,P4,"11652605 Canada Inc",Montreal,Quebec,Canada,"� Travers Tes Yeux",French,Documentary,2020-01-20,100000.00,100000.00,Contribution,"Theatrical Documentary Program",
2019-2020,P4,"90th Parallel Productions Ltd.",Toronto,Ontario,Canada,"Inconvenient Indian",English,Documentary,2020-01-21,75000.00,75000.00,Contribution,"Theatrical Documentary Program",
2019-2020,P4,"9388-0201 Qu�bec Inc",Maliotenam,Quebec,Canada,Nitassinan,French,Documentary,2020-03-05,100000.00,100000.00,Contribution,"Theatrical Documentary Program",
2019-2020,P4,"Mongrel Media Inc.",Toronto,Ontario,Canada,"Anthropocene: The Human Epoch",English,Documentary,2020-01-08,148413.00,185178.00,Advance,"Marketing Program","Amended Contract Signed 11-Jan-2019"
2019-2020,P4,"S.T. Culture China & M�bius Entertainment Group",Beijing,,China,Innocent,English,,2020-03-06,45000.00,45000.00,Contribution,"Export Assistance Program",
2019-2020,P4,"Level Film Inc.",Toronto,Ontario,Canada,"Angelique's Isle",English,"Historical Drama",2020-01-08,20405.00,26853.00,Advance,"Marketing Program","Amended Contract Signed 20-Feb-2019"
2019-2020,P4,"Level Film Inc.",Toronto,Ontario,Canada,"Riot Girls",English,"Science fiction/Fantasy/Tale",2020-02-17,19421.00,24750.00,Advance,"Marketing Program","Amended Contract Signed 26-Mar-2019"
2019-2020,P4,"Level Film Inc.",Toronto,Ontario,Canada,Firecrackers,English,,2020-01-10,108767.00,123750.00,Advance,"Marketing Program","Amended Contract Signed 26-Mar-2019"
2019-2020,P4,"Profane Ape Productions Inc.",Toronto,Ontario,Canada,"The Swearing Jar",English,Musical,2020-03-27,1000000.00,1000000.00,Investment,"Production Program",
2019-2020,P4,"VHS Forever Inc.",Toronto,Ontario,Canada,"I Like Movies (formerly Rejects Night)",English,Comedy,2020-03-25,125000.00,125000.00,Contribution,"Talent To Watch Program",
2019-2020,P4,"10614726 Canada Inc.",Gatineau,Quebec,Canada,L'inhumain,French,"Science fiction/Fantasy/Tale",2020-01-27,594000.00,594000.00,Contribution,"Production Program",
2019-2020,P4,"AMPS Productions Inc.",Mulmur,Ontario,Canada,"All My Puny Sorrows",English,Drama,2020-03-17,1500000.00,1500000.00,Investment,"Production Program",
2019-2020,P4,"11455176 Canada Inc.",Montreal,Quebec,Canada,BEANS,English,"Historical Drama",2020-03-30,1290000.00,1240000.00,Advance,"Production Program","Amended Contract Signed 27-Sep-2019"
2019-2020,P4,"Rosie Films Inc.",Toronto,Ontario,Canada,Rosie,English,Drama,2020-03-17,490000.00,490000.00,Investment,"Production Program",
2019-2020,P4,"Runaway Films Inc.","Antigonish County","Nova Scotia",Canada,Wildhood,English,Drama,2020-02-24,450000.00,450000.00,Contribution,"Production Program",
2019-2020,P4,"Lightning Mill Inc",Edmonton,Alberta,Canada,"Hey Viktor!",English,Comedy,2020-03-18,313300.00,313300.00,Contribution,"Production Program",
2019-2020,P4,"SSMT Productions Inc.",Vancouver,"British Columbia",Canada,Invasions,English,Drama,2020-03-06,400000.00,400000.00,Investment,"Production Program",
2019-2020,P4,"Mongrel Media Inc.",Toronto,Ontario,Canada,"GIANT LITTLE ONES",English,,2020-03-05,160546.00,160546.00,Advance,"Marketing Program",
2019-2020,P4,"Wire Walker Studios Canada",Lachine,Quebec,Canada,"Peace by Chocolate",English,Drama,2020-03-13,435000.00,400000.00,Contribution,"Production Program","Amended Contract Signed 20-Dec-2019"
2019-2020,P4,"Mongrel Media Inc.",Toronto,Ontario,Canada,"The Grizzlies",English,,2020-03-02,542016.00,542016.00,Advance,"Marketing Program",
2019-2020,P4,"9222-1712 Qu�bec Inc.",Outremont,Quebec,Canada,"Woman in Car",English,Drama,2020-02-17,80000.00,80000.00,Contribution,"Production Program",
2019-2020,P4,"Little Dipper Films Inc.",Whitehorse,Yukon,Canada,POLARIS,English,Drama,2020-03-17,500000.00,400000.00,Contribution,"Production Program","Amended Contract Signed 28-Oct-2019"
2019-2020,P4,"Lucky Lab Pictures Inc.",Vancouver,"British Columbia",Canada,"When Time Got Louder",English,Drama,2020-01-23,325000.00,325000.00,Investment,"Production Program",
2019-2020,P4,"9337-3447 Qu�bec Inc.",Montreal,Quebec,Canada,"�cho � Delta",French,Drama,2020-02-04,500000.00,500000.00,Contribution,"Production Program",
2019-2020,P4,"2187063 Alberta Ltd.",Edmonton,Alberta,Canada,"Before I Change My Mind",English,Drama,2020-02-18,350000.00,350000.00,Investment,"Production Program",
2019-2020,P4,"KRH film Inc.",Montreal,Quebec,Canada,"The G",English,Thriller,2020-03-05,500000.00,500000.00,Contribution,"Production Program",
2019-2020,P4,"FILM ALBANY INC.",Montreal,Quebec,Canada,"Au Nord d'Albany",French,Drama,2020-03-04,425000.00,425000.00,Contribution,"Production Program",
2019-2020,P4,"9409-0479 Qu�bec inc.","Ste-Famille I.O.",Quebec,Canada,"La Bataille de Farador",French,Comedy,2020-02-24,300000.00,300000.00,Investment,"Production Program",
2019-2020,P4,"See For Me Film Inc.",Toronto,Ontario,Canada,"See For Me",English,Thriller,2020-01-28,350000.00,350000.00,Investment,"Production Program",
2019-2020,P4,"11657445 Canada Inc.",Ottawa,Ontario,Canada,"La Switch",French,Drama,2020-03-05,450000.00,450000.00,Investment,"Production Program",
2019-2020,P4,"Virtual Insurance Films Inc.",Vancouver,"British Columbia",Canada,"With Love and a Major Organ",English,Comedy,2020-02-27,340000.00,340000.00,Investment,"Production Program",
2019-2020,P4,"The Boathouse Productions 2020 Inc.",Mississauga,Ontario,Canada,"THE BOATHOUSE",English,Thriller,2020-02-14,380000.00,380000.00,Investment,"Production Program",
2019-2020,P4,"New Dawn Films Ltd.",Kingsburg,"Nova Scotia",Canada,"Dawn, Her Dad & The Tractor",English,Drama,2020-01-16,350000.00,350000.00,Contribution,"Production Program",
2019-2020,P4,"Barn 12 (Brooke & Sam) Inc.",Toronto,Ontario,Canada,"Brooke and Sam",English,Drama,2020-01-22,325870.00,325870.00,Investment,"Production Program",
2019-2020,P4,"Brother Movie Inc.",Toronto,Ontario,Canada,Brother,English,Drama,2020-03-24,2800000.00,2800000.00,Investment,"Production Program",
2019-2020,P4,"AW Canada Films Inc.",Toronto,Ontario,Canada,"American Woman",,,2020-01-16,5000.00,5000.00,Contribution,"International Marketing Program",
2019-2020,P4,"6909060 Canada Inc.",Montreal,Quebec,Canada,"Blood Quantum",,,2020-02-17,1500.00,1500.00,Contribution,"International Marketing Program",
2019-2020,P4,"Sony Pictures Classics Inc.","New York","New York","United States","The Fall of The American Empire",English,,2020-03-20,12000.00,12000.00,Contribution,"Export Assistance Program",
2019-2020,P4,"PCF Cordonni�re Le Film Inc.",Montreal,Quebec,Canada,"La Cordonni�re",French,Drama,2020-03-20,1740000.00,1740000.00,Investment,"Production Program",
2019-2020,P4,"Pionniers Productions Inc.",St-Anicet,Quebec,Canada,"Maria Chapdelaine",French,"Historical Drama",2020-01-29,2050000.00,2050000.00,Advance,"Production Program",
2019-2020,P4,"Northwood Productions Inc.",Toronto,Ontario,Canada,"The Grizzlies",,,2020-02-11,3000.00,3000.00,Contribution,"International Marketing Program",
2019-2020,P4,"Film Forge Productions Inc.",Toronto,Ontario,Canada,Mizeria,,,2020-03-24,1500.00,1500.00,Contribution,"International Marketing Program",
2019-2020,P4,"Cin�fest: The Sudbury Film Festival Inc.",Sudbury,Ontario,Canada,"Cinefest Sudbury International Film Festival",,,2020-01-06,59483.00,59483.00,Contribution,"Promotion Program",
2019-2020,P4,"Sinking Ship Entertainment Inc.",Toronto,Ontario,Canada,"Dino Dana: The Movie",English,,2020-02-24,150000.00,150000.00,Advance,"Marketing Program",
2019-2020,P4,"Women In Film and Television - Atlantic",Halifax,"Nova Scotia",Canada,"Women Making Waves Conference 2020",,,2020-01-06,5000.00,5000.00,Contribution,"Promotion Program",
2019-2020,P4,"Interactive Ontario Industry Association",Toronto,Ontario,Canada,"Interactive Digital Media Distribution Forum",,,2020-01-15,20000.00,20000.00,Contribution,"Promotion Program",
2019-2020,P4,"Curiosity Pictures Inc.",Burnaby,"British Columbia",Canada,"Middle 8",,,2020-03-03,1500.00,1500.00,Contribution,"International Marketing Program",
2019-2020,P4,"Ins�parables films inc.",Montreal,Quebec,Canada,Nichole,French,Drama,2020-02-24,90000.00,90000.00,Contribution,"Talent To Watch Program",
2019-2020,P4,"2703715 ONTARIO INC.",Toronto,Ontario,Canada,"The Maiden",English,Drama,2020-01-02,125000.00,125000.00,Contribution,"Talent To Watch Program",
2019-2020,P4,"Jewelwing Pictures Ltd.",Fredericton,"New Brunswick",Canada,"Further Than The Eye Can See",English,"Science fiction/Fantasy/Tale",2020-03-12,125000.00,125000.00,Contribution,"Talent To Watch Program",
2019-2020,P4,"10028866 Manitoba Ltd.",Peguis,Manitoba,Canada,iNdigiThreads,English,Documentary,2020-01-07,125000.00,125000.00,Contribution,"Talent To Watch Program",
2019-2020,P4,"Film Forge Productions Inc.",Toronto,Ontario,Canada,Mizeria,,,2020-03-11,1500.00,1500.00,Contribution,"International Marketing Program",
2019-2020,P4,"A71 Entertainment Inc.",Toronto,Ontario,Canada,Rabid,English,Horror,2020-02-06,156300.00,156300.00,Advance,"Marketing Program",
2019-2020,P4,"Isuma Distribution International Ltd.",Montreal,Quebec,Canada,"One Day in the Life of  Noah Piugattuk",Aboriginal,"Historical Drama",2020-03-27,150000.00,150000.00,Advance,"Marketing Program",
2019-2020,P4,"Screen Nova Scotia Industry Association",Halifax,"Nova Scotia",Canada,"Nova Scotia Content Market",,,2020-03-06,3000.00,3000.00,Contribution,"Promotion Program",
2019-2020,P4,"Baldy Film  Inc.",Toronto,Ontario,Canada,"White Lie",,,2020-03-12,3500.00,3500.00,Contribution,"International Marketing Program",
2019-2020,P4,"Level Film Inc.",Toronto,Ontario,Canada,"The Rest Of Us",English,Drama,2020-01-29,49500.00,49500.00,Advance,"Marketing Program",
2019-2020,P4,"FE (Canada) Films Inc.",Toronto,Ontario,Canada,"French Exit",English,Comedy,2020-02-20,2750000.00,2750000.00,Investment,"Production Program",
2019-2020,P4,"ATOMIC AUTUMN PRODUCTIONS INC.",Montreal,Quebec,Canada,"Best Sellers",English,Comedy,2020-01-15,2280364.00,2280364.00,Advance,"Production Program",
2019-2020,P4,"Coop Spira",Quebec,Quebec,Canada,"Mad Dog & The Butcher - Les derniers vilains",French,,2020-03-17,14500.00,14500.00,Advance,"Marketing Program",
2019-2020,P4,"Coop Spira",Quebec,Quebec,Canada,"Prisons sans barreaux",French,,2020-03-17,12550.00,12550.00,Advance,"Marketing Program",
2019-2020,P4,"Festival international du film pour enfants de Montr�al",Montreal,Quebec,Canada,"Festival International du Film pour Enfants de Montr�al",,,2020-01-15,16223.00,16223.00,Contribution,"Promotion Program",
2019-2020,P4,"Serendipity Point Films Inc.",Toronto,Ontario,Canada,"The Song of Names",,,2020-02-10,7000.00,7000.00,Contribution,"International Marketing Program",
2019-2020,P4,"Voyelles Films Productions inc.",Montreal,Quebec,Canada,"Sin La Habana",,,2020-01-02,1500.00,1500.00,Contribution,"International Marketing Program",
2019-2020,P4,"Canadian Filmmakers Festival",Toronto,Ontario,Canada,"Canadian Filmmakers Festival",,,2020-03-23,5000.00,5000.00,Contribution,"Promotion Program",
2019-2020,P4,"9286-4883 Qu�bec Inc. (faisant affaire sous le nom de L'embuscade Films)",Montreal,Quebec,Canada,"La mort n'existe pas",,,2020-03-02,1500.00,1500.00,Contribution,"International Marketing Program",
2019-2020,P4,"Banker Box Films Limited","King City",Ontario,Canada,"Mother's Day",English,Documentary,2020-03-08,125000.00,125000.00,Contribution,"Talent To Watch Program",
2019-2020,P4,"Festival du film de l'Outaouais",Montreal,Quebec,Canada,"Festival du film de l'Outaouais",,,2020-02-19,21069.00,21069.00,Contribution,"Promotion Program",
2019-2020,P4,"Wide Open Exposure Productions Limited",Montreal,Quebec,Canada,"Producing The Threat",English,Documentary,2020-03-17,15000.00,15000.00,Advance,"Development Program",
2019-2020,P4,"Serendipity Point Films Inc.",Toronto,Ontario,Canada,"Crimes of the Future",English,Drama,2020-01-09,200000.00,200000.00,Advance,"Development Program",
2019-2020,P4,"La Bo�te � Fanny inc.",Montreal,Quebec,Canada,Zipper,French,Musical,2020-03-12,15000.00,15000.00,Advance,"Development Program",
2019-2020,P4,"Julijette Inc.",Winnipeg,Manitoba,Canada,Lemniscate,English,"Science fiction/Fantasy/Tale",2020-02-06,15000.00,15000.00,Advance,"Development Program",
2019-2020,P4,"Carousel Pictures Inc.",Toronto,Ontario,Canada,"Boom Boom",English,Drama,2020-03-12,15000.00,15000.00,Advance,"Development Program",
2019-2020,P4,"Amalga Cr�ations M�dias Inc.",Montreal,Quebec,Canada,"Autour d'elle",French,Drama,2020-02-26,15000.00,15000.00,Advance,"Development Program",
2019-2020,P4,"Perfect Pictures Inc.",Calgary,Alberta,Canada,"Penny Whistle",English,Horror,2020-02-13,15000.00,15000.00,Advance,"Development Program",
2019-2020,P4,"Resonance Films Inc.",Vancouver,"British Columbia",Canada,"THE MILK CARTON KID",English,Comedy,2020-02-11,15000.00,15000.00,Advance,"Development Program",
2019-2020,P4,"Rink Rat Productions Inc.","St. John's",Newfoundland/Labrador,Canada,"Bark Avenue",English,Drama,2020-03-20,15000.00,15000.00,Advance,"Development Program",
2019-2020,P4,"Rink Rat Productions Inc.","St. John's",Newfoundland/Labrador,Canada,"Brotherly Love",English,Drama,2020-03-20,15000.00,15000.00,Advance,"Development Program",
2019-2020,P4,"Rink Rat Productions Inc.","St. John's",Newfoundland/Labrador,Canada,Game,English,Drama,2020-03-20,30000.00,30000.00,Advance,"Development Program",
2019-2020,P4,"Rink Rat Productions Inc.","St. John's",Newfoundland/Labrador,Canada,Shimmer,English,Drama,2020-03-20,15000.00,15000.00,Advance,"Development Program",
2019-2020,P4,"Rink Rat Productions Inc.","St. John's",Newfoundland/Labrador,Canada,"Dear Everybody",English,"Historical Drama",2020-03-20,15000.00,15000.00,Advance,"Development Program",
2019-2020,P4,"A71 Entertainment Inc.",Toronto,Ontario,Canada,"Honey Bee formerly Natalie",English,Drama,2020-02-14,25000.00,25000.00,Advance,"Marketing Program",
2019-2020,P4,"Six Island Productions Inc.",Toronto,Ontario,Canada,"The Hag",English,Horror,2020-03-16,15000.00,15000.00,Advance,"Development Program",
2019-2020,P4,"New Real Films Inc.",Toronto,Ontario,Canada,"The Story of Polly Childs As Told By Her Enemies",English,Drama,2020-02-13,15000.00,15000.00,Advance,"Development Program",
2019-2020,P4,"New Real Films Inc.",Toronto,Ontario,Canada,"Unidentified Donald",English,Drama,2020-02-13,20000.00,20000.00,Advance,"Development Program",
2019-2020,P4,"New Real Films Inc.",Toronto,Ontario,Canada,Seeds,English,Thriller,2020-02-13,15000.00,15000.00,Advance,"Development Program",
2019-2020,P4,"Interstate 80 Entertainment Inc.",Calgary,Alberta,Canada,"Marooned on Planet Earth",English,Thriller,2020-02-10,15000.00,15000.00,Advance,"Development Program",
2019-2020,P4,"Orange M�dias Inc.",Rosemere,Quebec,Canada,St�r�o-Parental,French,Comedy,2020-02-27,15000.00,15000.00,Advance,"Development Program",
2019-2020,P4,"Orange M�dias Inc.",Rosemere,Quebec,Canada,"Une Maille � l'endroit, une maille � l'envers",French,Comedy,2020-02-27,15000.00,15000.00,Advance,"Development Program",
2019-2020,P4,"Banner House Productions Inc.",Montreal,Quebec,Canada,"The Love Experiment",English,"Romantic Comedy",2020-02-12,15000.00,15000.00,Advance,"Development Program",
2019-2020,P4,"Les films de Gary Inc.","Havre-aux-Maisons, Iles-de-la-Madeleine",Quebec,Canada,"CE QUI TOURNE AU CAUCHEMAR",French,Documentary,2020-02-24,15000.00,15000.00,Advance,"Development Program",
2019-2020,P4,"Motion 58 Entertainment Inc.",Vancouver,"British Columbia",Canada,"Anything Co.",English,Comedy,2020-03-02,35000.00,35000.00,Advance,"Development Program",
2019-2020,P4,"Motion 58 Entertainment Inc.",Vancouver,"British Columbia",Canada,"Charlie and the Misfits of 3B",English,Comedy,2020-03-02,15000.00,15000.00,Advance,"Development Program",
2019-2020,P4,"Motion 58 Entertainment Inc.",Vancouver,"British Columbia",Canada,"NYE Y2K",English,Horror,2020-03-02,15000.00,15000.00,Advance,"Development Program",
2019-2020,P4,"9360-1953 Qu�bec inc.",Montreal,Quebec,Canada,"The Hole in the Sky",English,"Science fiction/Fantasy/Tale",2020-02-18,15000.00,15000.00,Advance,"Development Program",
2019-2020,P4,"Amerique Film Inc.",Montreal,Quebec,Canada,"J'ai perdu mon mari",,,2020-02-11,1500.00,1500.00,Contribution,"International Marketing Program",
2019-2020,P4,"MCP Productions Inc.",Montreal,Quebec,Canada,"Ethel's Orchestra",English,"Historical Drama",2020-02-12,15000.00,15000.00,Advance,"Development Program",
2019-2020,P4,"6710875 Canada inc.",Gatineau,Quebec,Canada,Mokatek,French,"Science fiction/Fantasy/Tale",2020-02-26,15000.00,15000.00,Advance,"Development Program",
2019-2020,P4,"FESTIVAL DU FILM INTERNATIONAL DE BAIE-COMEAU (CINOCHE) INC",Baie-Comeau,Quebec,Canada,"Festival du film international de Baie-Comeau-Cinoche",,,2020-03-16,6000.00,6000.00,Contribution,"Promotion Program",
2019-2020,P4,"Chaos A Film Company Inc.",Calgary,Alberta,Canada,"Trickle Creek",English,"Romantic Comedy",2020-02-27,15000.00,15000.00,Advance,"Development Program",
2019-2020,P4,"Cineast Screen Development Limited",Halifax,"Nova Scotia",Canada,"THE CAIRN",English,Thriller,2020-02-12,15000.00,15000.00,Advance,"Development Program",
2019-2020,P4,"Marie Clements Media Inc.","Galiano Island","British Columbia",Canada,"SPARROW/Nel Dzay Ya",English,Thriller,2020-03-17,18000.00,18000.00,Advance,"Development Program",
2019-2020,P4,"White Pine Pictures Inc.",Toronto,Ontario,Canada,"Margaret Atwood: A Word After a Word After a Word Is Power",English,Documentary,2020-01-06,25000.00,25000.00,Advance,"Marketing Program",
2019-2020,P4,"Hope of Glory Pictures Ltd.",Burnaby,"British Columbia",Canada,"Past Present",English,Comedy,2020-03-11,20000.00,20000.00,Advance,"Development Program",
2019-2020,P4,"Hope of Glory Pictures Ltd.",Burnaby,"British Columbia",Canada,"APEIRON FALLS",English,"Science fiction/Fantasy/Tale",2020-03-11,15000.00,15000.00,Advance,"Development Program",
2019-2020,P4,"Amazing Factory Productions Inc.",Vancouver,"British Columbia",Canada,Mustard,English,Drama,2020-02-10,15000.00,15000.00,Advance,"Development Program",
2019-2020,P4,"Amazing Factory Productions Inc.",Vancouver,"British Columbia",Canada,"Black Sand",English,Western,2020-02-10,15000.00,15000.00,Advance,"Development Program",
2019-2020,P4,"�a Tourne Productions Ltee.",Caraquet,"New Brunswick",Canada,"LES VOIX - Une ode lyrique � la r�sistance",French,Documentary,2020-03-06,15000.00,15000.00,Advance,"Development Program",
2019-2020,P4,"Wreckhouse Productions Inc.","St. John's",Newfoundland/Labrador,Canada,Limelight,English,Drama,2020-02-24,15000.00,15000.00,Advance,"Development Program",
2019-2020,P4,"Mazewalker Films","Bear River","Nova Scotia",Canada,Skite'kmujua'kik,English,"Science fiction/Fantasy/Tale",2020-03-17,18000.00,18000.00,Advance,"Development Program",
2019-2020,P4,"Devonshire Productions Inc.",Toronto,Ontario,Canada,Warg,English,Horror,2020-02-12,15000.00,15000.00,Advance,"Development Program",
2019-2020,P4,"1371097 Ontario Ltd. O/A CaribbeanTales",Toronto,Ontario,Canada,"In The Black",English,Drama,2020-02-19,15000.00,15000.00,Advance,"Development Program",
2019-2020,P4,"1371097 Ontario Ltd. O/A CaribbeanTales",Toronto,Ontario,Canada,"Left of Marx",English,Drama,2020-02-19,15000.00,15000.00,Advance,"Development Program",
2019-2020,P4,"Urbansoul Inc.",Toronto,Ontario,Canada,"BROWN GIRL",English,"Science fiction/Fantasy/Tale",2020-03-10,15000.00,15000.00,Advance,"Development Program",
2019-2020,P4,"Clique Pictures Inc.",Toronto,Ontario,Canada,"Places in Between",English,Drama,2020-03-16,15000.00,15000.00,Advance,"Development Program",
2019-2020,P4,"Level Film Inc.",Toronto,Ontario,Canada,"Anthem of a Teenage Prophet",English,,2020-03-26,26895.00,26895.00,Advance,"Marketing Program",
2019-2020,P4,"Boomtalk Musical Production Inc.",Winnipeg,Manitoba,Canada,"Stand! (aka Strike!)",English,Musical,2020-01-29,125000.00,125000.00,Advance,"Marketing Program",
2019-2020,P4,"Max Films OSM Inc.",Montreal,Quebec,Canada,CHAAKAPESH,French,Documentary,2020-01-23,85000.00,85000.00,Contribution,"Theatrical Documentary Program",
2019-2020,P4,"G.P.A. Films Inc.",Longueuil,Quebec,Canada,"Seule au front",French,Drama,2020-02-24,15000.00,15000.00,Advance,"Development Program",
2019-2020,P4,"Trailer Park Productions Limited",Halifax,"Nova Scotia",Canada,"My Dad Is Fucked",English,Comedy,2020-01-23,40000.00,40000.00,Advance,"Development Program",
2019-2020,P4,"Trailer Park Productions Limited",Halifax,"Nova Scotia",Canada,"The Kidnapping of Alexander Mogilny",English,Drama,2020-01-23,40000.00,40000.00,Advance,"Development Program",
2019-2020,P4,"8314136 Canada Inc.",Charlottetown,"Prince Edward Island",Canada,"Chase the Ace",English,Comedy,2020-03-18,15000.00,15000.00,Advance,"Development Program",
2019-2020,P4,"Lumanity Productions Inc.",Toronto,Ontario,Canada,"Delia's Gone",English,Drama,2020-03-12,20000.00,20000.00,Advance,"Development Program",
2019-2020,P4,"Festival cin�ma du monde de Sherbrooke",Sherbrooke,Quebec,Canada,"Festival cin�ma du monde de Sherbrooke",,,2020-02-04,5000.00,5000.00,Contribution,"Promotion Program",
2019-2020,P4,"Opus 59 Films Inc.",Vancouver,"British Columbia",Canada,"Stanley Park",English,Drama,2020-02-12,15000.00,15000.00,Advance,"Development Program",
2019-2020,P4,"Film Forge Productions Inc.",Toronto,Ontario,Canada,Mizeria,,,2020-03-24,1500.00,1500.00,Contribution,"International Marketing Program",
2019-2020,P4,"1976 Productions inc.",Montreal,Quebec,Canada,"Le Pacte",French,Horror,2020-03-09,15000.00,15000.00,Advance,"Development Program",
2019-2020,P4,"Films 53/12 Inc.",Montreal,Quebec,Canada,"De jour en jour",French,"Science fiction/Fantasy/Tale",2020-02-26,15000.00,15000.00,Advance,"Development Program",
2019-2020,P4,"Films du Boulevard Inc.",Montreal,Quebec,Canada,"Devenir un monstre",French,Drama,2020-02-27,15000.00,15000.00,Advance,"Development Program",
2019-2020,P4,"Canadian Media Producers Association - Association canadienne de la production m�diatique",Toronto,Ontario,Canada,"Prime Time 20, Export Development Mentorship Program 20-21",,,2020-01-16,55000.00,55000.00,Contribution,"Promotion Program",
2019-2020,P4,"Full Plate Productions Incorporated",Hamilton,Ontario,Canada,"A Bad Day for Voodoo",English,Comedy,2020-02-27,15000.00,15000.00,Advance,"Development Program",
2019-2020,P4,"Lady Hammond Entertainment Inc.",Dartmouth,"Nova Scotia",Canada,"When The Saints",English,Drama,2020-02-19,15000.00,15000.00,Advance,"Development Program",
2019-2020,P4,"Mark Sawers Productions Ltd.","West Vancouver","British Columbia",Canada,Splitsville,English,Comedy,2020-03-16,15000.00,15000.00,Advance,"Development Program",
2019-2020,P4,"Amerique Film Inc.",Montreal,Quebec,Canada,"J�ai perdu mon mari",French,Comedy,2020-03-24,15000.00,15000.00,Advance,"Development Program",
2019-2020,P4,"Firecrackers Film Incorporated",Bolton,Ontario,Canada,MONSTERS,English,Drama,2020-03-24,15000.00,15000.00,Advance,"Development Program",
2019-2020,P4,"9151-1766 Qu�bec Inc.",Montreal,Quebec,Canada,"Le Lys, l'�rable et le jasmin",French,Drama,2020-02-21,15000.00,15000.00,Advance,"Development Program",
2019-2020,P4,"Tohkapi Cinema Ltd.","North Vancouver","British Columbia",Canada,"Disappearing Moon",English,Drama,2020-03-16,18000.00,18000.00,Advance,"Development Program",
2019-2020,P4,"Newfoundland Independent Filmmakers Co-Operative","St. John's",Newfoundland/Labrador,Canada,"Picture Start",,,2020-01-30,44000.00,44000.00,Contribution,"Promotion Program",
2019-2020,P4,"K.O. 24 Inc.",Montreal,Quebec,Canada,"Quitte � tout perdre",French,Comedy,2020-02-26,15000.00,15000.00,Advance,"Development Program",
2019-2020,P4,"Caravane Films Productions",Chicoutimi,Quebec,Canada,"Festival REGARD / March� du court",,,2020-02-18,39659.00,39659.00,Contribution,"Promotion Program",
2019-2020,P4,"Festival International du Film sur l'Art",Montreal,Quebec,Canada,"Festival International du Film sur l'Art",,,2020-02-11,34608.00,34608.00,Contribution,"Promotion Program",
2019-2020,P4,"Documentary Organization of Canada",Toronto,Ontario,Canada,"Festival Concierge",,,2020-03-27,8000.00,8000.00,Contribution,"Promotion Program",
2019-2020,P4,"Experimental Forest Films Inc.",Vancouver,"British Columbia",Canada,Fire,English,Drama,2020-02-12,15000.00,15000.00,Advance,"Development Program",
2019-2020,P4,"Experimental Forest Films Inc.",Vancouver,"British Columbia",Canada,Inedia,English,Drama,2020-02-12,15000.00,15000.00,Advance,"Development Program",
2019-2020,P4,"Experimental Forest Films Inc.",Vancouver,"British Columbia",Canada,"The Narrow Edge",English,Drama,2020-02-12,15000.00,15000.00,Advance,"Development Program",
2019-2020,P4,"Films Du Paria Inc. (les)",Longueuil,Quebec,Canada,Ababouin�,French,Comedy,2020-03-20,15000.00,15000.00,Advance,"Development Program",
2019-2020,P4,"Forum Films 2005 Inc.",Montreal,Quebec,Canada,"Le soldat",French,Drama,2020-01-10,42540.00,42540.00,Advance,"Development Program",
2019-2020,P4,"Foundry Films Inc.",Toronto,Ontario,Canada,"Bayou Of Pigs",English,Drama,2020-03-06,15000.00,15000.00,Advance,"Development Program",
2019-2020,P4,"LES PRODUCTIONS KINESIS INC.",Montreal,Quebec,Canada,"La b�te noire",French,Drama,2020-03-09,15000.00,15000.00,Advance,"Development Program",
2019-2020,P4,"9219-3010 Qu�bec inc.",Montreal,Quebec,Canada,"La Mystique",French,Horror,2020-01-16,25000.00,25000.00,Advance,"Development Program",
2019-2020,P4,"Picture Plant Limited",Kingsburg,"Nova Scotia",Canada,"Execution Blues",English,"Historical Drama",2020-02-26,15000.00,15000.00,Advance,"Development Program",
2019-2020,P4,"Black Dog Films Inc.",Halifax,"Nova Scotia",Canada,"The Girl in the Yellow Dress",English,Mystery/Crime/Police,2020-02-12,15000.00,15000.00,Advance,"Development Program",
2019-2020,P4,"EMA FILMS INC.",Montreal,Quebec,Canada,"The Ledge",English,Comedy,2020-02-12,15000.00,15000.00,Advance,"Development Program",
2019-2020,P4,"EMA FILMS INC.",Montreal,Quebec,Canada,"26 Seconds",English,Drama,2020-02-12,20000.00,20000.00,Advance,"Development Program",
2019-2020,P4,"EMA FILMS INC.",Montreal,Quebec,Canada,"La maison de Micha (titre de travail)",French,Drama,2020-02-12,20000.00,20000.00,Advance,"Development Program",
2019-2020,P4,"Mad Samurai Productions Inc.",Richmond,"British Columbia",Canada,"Hard Home",English,Horror,2020-03-11,25000.00,25000.00,Advance,"Development Program",
2019-2020,P4,"Mad Samurai Productions Inc.",Richmond,"British Columbia",Canada,"Hunting Season",English,"Science fiction/Fantasy/Tale",2020-03-11,15000.00,15000.00,Advance,"Development Program",
2019-2020,P4,"Mad Samurai Productions Inc.",Richmond,"British Columbia",Canada,Trust/Fall,English,Thriller,2020-03-11,15000.00,15000.00,Advance,"Development Program",
2019-2020,P4,"Play Your Gender Inc.",Dartmouth,"Nova Scotia",Canada,"LOSING LEWIS",English,Comedy,2020-03-11,15000.00,15000.00,Advance,"Development Program",
2019-2020,P4,"Farpoint Films Inc.",Winnipeg,Manitoba,Canada,"Inner Alchemy",English,Drama,2020-03-13,15000.00,15000.00,Advance,"Development Program",
2019-2020,P4,"CUT/OFF/TAIL Pictures Inc.","West Pennant","Nova Scotia",Canada,NDE,English,Horror,2020-03-16,15000.00,15000.00,Advance,"Development Program",
2019-2020,P4,"CUT/OFF/TAIL Pictures Inc.","West Pennant","Nova Scotia",Canada,Feed,English,Thriller,2020-03-16,15000.00,15000.00,Advance,"Development Program",
2019-2020,P4,"CUT/OFF/TAIL Pictures Inc.","West Pennant","Nova Scotia",Canada,"The Willows",English,Thriller,2020-03-16,15000.00,15000.00,Advance,"Development Program",
2019-2020,P4,"7887515 Canada inc",Montreal,Quebec,Canada,Consent,English,Drama,2020-02-19,15000.00,15000.00,Advance,"Development Program",
2019-2020,P4,"A71 Entertainment Inc.",Toronto,Ontario,Canada,"Red Snow",English,,2020-03-12,86583.00,86583.00,Advance,"Marketing Program",
2019-2020,P4,"Idlewild Films Limited",Halifax,"Nova Scotia",Canada,"The Burning Sky",English,Drama,2020-02-10,15000.00,15000.00,Advance,"Development Program",
2019-2020,P4,"Rezolution Pictures International Inc.",Outremont,Quebec,Canada,"The Oldest Trip in the Book",English,Documentary,2020-02-10,15000.00,15000.00,Advance,"Development Program",
2019-2020,P4,"South Creek Pictures Inc.","Lions Bay","British Columbia",Canada,"West Of Dead",English,Action/Adventure,2020-03-17,20000.00,20000.00,Advance,"Development Program",
2019-2020,P4,"Film Forge Productions Inc.",Toronto,Ontario,Canada,CUTBLOCK,English,Drama,2020-03-10,15000.00,15000.00,Advance,"Development Program",
2019-2020,P4,"Film Forge Productions Inc.",Toronto,Ontario,Canada,"Infinity Pool",English,Thriller,2020-03-10,20000.00,20000.00,Advance,"Development Program",
2019-2020,P4,"Bravo Charlie inc.",Montreal,Quebec,Canada,"La Coureuse",French,Drama,2020-03-09,15000.00,15000.00,Advance,"Development Program",
2019-2020,P4,"Films Vision 4 Inc.",Montreal,Quebec,Canada,"Quatre contre les loups",French,Action/Adventure,2020-01-14,30000.00,30000.00,Advance,"Development Program",
2019-2020,P4,"Transmar Films Inc.",Montreal,Quebec,Canada,"Labrador ou L'anatomie du silence",French,Drama,2020-02-28,15000.00,15000.00,Advance,"Development Program",
2019-2020,P4,"Possibles M�dia inc.",Montreal,Quebec,Canada,"La campagne",French,Drama,2020-03-12,15000.00,15000.00,Advance,"Development Program",
2019-2020,P4,"Impossible Objects Inc.",Toronto,Ontario,Canada,AURORA,English,Thriller,2020-03-26,15000.00,15000.00,Advance,"Development Program",
2019-2020,P4,"Reality Distortion Field Inc.",Vancouver,"British Columbia",Canada,"Helen of Vetka",English,"Science fiction/Fantasy/Tale",2020-03-10,15000.00,15000.00,Advance,"Development Program",
2019-2020,P4,"Bunk 11 Pictures Inc.",Ottawa,Ontario,Canada,"Playing with Fire",English,Thriller,2020-03-16,15000.00,15000.00,Advance,"Development Program",
2019-2020,P4,"Woods Entertainment Canada Inc.",Toronto,Ontario,Canada,"The Long Fall",English,Mystery/Crime/Police,2020-03-18,15000.00,15000.00,Advance,"Development Program",
2019-2020,P4,"Cin�maginaire inc.",Montreal,Quebec,Canada,Menteuse,French,Comedy,2020-02-05,63500.00,63500.00,Advance,"Development Program",
2019-2020,P4,"Cin�maginaire inc.",Montreal,Quebec,Canada,"Fille de ma m�re",French,Drama,2020-02-05,15000.00,15000.00,Advance,"Development Program",
2019-2020,P4,"Cin�maginaire inc.",Montreal,Quebec,Canada,"La fille de son p�re ( P�re et filles)",French,Drama,2020-02-05,42000.00,42000.00,Advance,"Development Program",
2019-2020,P4,"Cin�maginaire inc.",Montreal,Quebec,Canada,"R�volution 60",French,Drama,2020-02-05,20000.00,20000.00,Advance,"Development Program",
2019-2020,P4,"Cin�maginaire inc.",Montreal,Quebec,Canada,"Les Belles-Soeurs",French,Musical,2020-02-05,58000.00,58000.00,Advance,"Development Program",
2019-2020,P4,"Cin�maginaire inc.",Montreal,Quebec,Canada,"Temps des F�tes (Le)",French,"Science fiction/Fantasy/Tale",2020-02-05,16500.00,16500.00,Advance,"Development Program",
2019-2020,P4,"Markham Street Films Inc.",Stratford,Ontario,Canada,"Your Life is Mine",English,Mystery/Crime/Police,2020-03-12,15000.00,15000.00,Advance,"Development Program",
2019-2020,P4,"Trinica Entertainment Consultants Inc.",Montreal,Quebec,Canada,"26 Knots",English,Drama,2020-01-30,20000.00,20000.00,Advance,"Development Program",
2019-2020,P4,"Productions l'unit� centrale inc.",Montreal,Quebec,Canada,"Copenhague Film Festival",French,Drama,2020-03-06,15000.00,15000.00,Advance,"Development Program",
2019-2020,P4,"Productions l'unit� centrale inc.",Montreal,Quebec,Canada,SexGarage,French,Drama,2020-03-06,15000.00,15000.00,Advance,"Development Program",
2019-2020,P4,"Productions Avenida inc.",Montreal,Quebec,Canada,"Les �toiles filantes",French,"Romantic Comedy",2020-02-28,15000.00,15000.00,Advance,"Development Program",
2019-2020,P4,"Productions Caramel Film Inc.",Montreal,Quebec,Canada,"Le Retour de Silverman",French,Comedy,2020-02-10,34181.00,34181.00,Advance,"Development Program",
2019-2020,P4,"Productions Caramel Film Inc.",Montreal,Quebec,Canada,"Paul 2",French,Comedy,2020-02-10,62474.00,62474.00,Advance,"Development Program",
2019-2020,P4,"Productions Caramel Film Inc.",Montreal,Quebec,Canada,"L'App�t du bien",French,Drama,2020-02-10,29456.00,29456.00,Advance,"Development Program",
2019-2020,P4,"Productions Caramel Film Inc.",Montreal,Quebec,Canada,"Visite Libre",French,Horror,2020-02-10,39561.00,39561.00,Advance,"Development Program",
2019-2020,P4,"Productions Caramel Film Inc.",Montreal,Quebec,Canada,L'Anglais,English,"Romantic Comedy",2020-02-10,34328.00,34328.00,Advance,"Development Program",
2019-2020,P4,"Gearshift Films Inc.",Toronto,Ontario,Canada,Nextworld,English,"Science fiction/Fantasy/Tale",2020-02-12,15000.00,15000.00,Advance,"Development Program",
2019-2020,P4,"Films Outsiders Inc. (Les)",Verdun,Quebec,Canada,"LA JOIE",French,Documentary,2020-03-06,30000.00,30000.00,Advance,"Development Program",
2019-2020,P4,"Scythia Films Inc.",Toronto,Ontario,Canada,"Eden Express",English,Drama,2020-03-03,15000.00,15000.00,Advance,"Development Program",
2019-2020,P4,"Goodbye Productions Inc.",Vancouver,"British Columbia",Canada,"The Bearded Girl",English,Drama,2020-03-11,15000.00,15000.00,Advance,"Development Program",
2019-2020,P4,"Goodbye Productions Inc.",Vancouver,"British Columbia",Canada,ELLE,English,"Historical Drama",2020-03-11,15000.00,15000.00,Advance,"Development Program",
2019-2020,P4,"Alcina Pictures Ltd.",Toronto,Ontario,Canada,"Sharp Corner",English,Thriller,2020-03-13,15000.00,15000.00,Advance,"Development Program",
2019-2020,P4,"Rodeo Queen Pictures Inc.",Vancouver,"British Columbia",Canada,Stock,English,"Historical Drama",2020-03-18,15000.00,15000.00,Advance,"Development Program",
2019-2020,P4,"Microclimat Films Inc.",Montreal,Quebec,Canada,"The Touch of Her Flesh",English,Drama,2020-03-05,15000.00,15000.00,Advance,"Development Program",
2019-2020,P4,"Microclimat Films Inc.",Montreal,Quebec,Canada,"Le Train",French,"Science fiction/Fantasy/Tale",2020-03-05,15000.00,15000.00,Advance,"Development Program",
2019-2020,P4,"The Film Farm Inc.",Toronto,Ontario,Canada,Honourable?,English,Drama,2020-02-12,48800.00,48800.00,Advance,"Development Program",
2019-2020,P4,"Darius Films Inc.",Toronto,Ontario,Canada,"Tales of the Thunderbird",English,Action/Adventure,2020-03-13,15000.00,15000.00,Advance,"Development Program",
2019-2020,P4,"Darius Films Inc.",Toronto,Ontario,Canada,"Kill Them All",English,Drama,2020-03-13,25000.00,25000.00,Advance,"Development Program",
2019-2020,P4,"Flimshow Inc.",Toronto,Ontario,Canada,"T'ES BELLE MARYSE",French,Drama,2020-03-09,15000.00,15000.00,Advance,"Development Program",
2019-2020,P4,"First Take Entertainment Ltd.",Oakville,Ontario,Canada,"Bad Seeds",English,"Romantic Comedy",2020-03-24,52150.00,52150.00,Advance,"Development Program",
2019-2020,P4,"First Take Entertainment Ltd.",Oakville,Ontario,Canada,Re-Arranged,English,"Romantic Comedy",2020-03-24,47700.00,47700.00,Advance,"Development Program",
2019-2020,P4,"Wildling Pictures Inc.",Toronto,Ontario,Canada,"Max and Olga Don't Want Children",English,"Romantic Comedy",2020-03-05,15000.00,15000.00,Advance,"Development Program",
2019-2020,P4,"Artemis Films Inc.",Montreal,Quebec,Canada,Tricheurs,French,Comedy,2020-02-24,15000.00,15000.00,Advance,"Development Program",
2019-2020,P4,"Christie Street Creative Inc.","New Westminster","British Columbia",Canada,"Game 7",English,Documentary,2020-02-17,15000.00,15000.00,Advance,"Development Program",
2019-2020,P4,"Manis Film Consultants Inc.",Toronto,Ontario,Canada,Reprise,English,"Historical Drama",2020-03-20,20000.00,20000.00,Advance,"Development Program",
2019-2020,P4,"Crawlspace Films, Inc.","St. John's",Newfoundland/Labrador,Canada,"Sweet Angel Baby",English,Drama,2020-03-17,15000.00,15000.00,Advance,"Development Program",
2019-2020,P4,"Crawlspace Films, Inc.","St. John's",Newfoundland/Labrador,Canada,"The Street",English,Drama,2020-03-17,20000.00,20000.00,Advance,"Development Program",
2019-2020,P4,"Greenground Productions Inc.",Montreal,Quebec,Canada,"Our Trespasses",English,Drama,2020-03-25,15000.00,15000.00,Advance,"Development Program",
2019-2020,P4,"Association coop�rative de productions audio-visuelles",Montreal,Quebec,Canada,"FRED ET LUCIE",French,Drama,2020-03-10,15000.00,15000.00,Advance,"Development Program",
2019-2020,P4,"Association coop�rative de productions audio-visuelles",Montreal,Quebec,Canada,"PAULETTE & AUGUSTINE",French,Drama,2020-03-10,18732.00,18732.00,Advance,"Development Program",
2019-2020,P4,"Association coop�rative de productions audio-visuelles",Montreal,Quebec,Canada,D�MENCE,French,Mystery/Crime/Police,2020-03-10,16268.00,16268.00,Advance,"Development Program",
2019-2020,P4,"Association coop�rative de productions audio-visuelles",Montreal,Quebec,Canada,"LE SILENCE",French,Mystery/Crime/Police,2020-03-10,15000.00,15000.00,Advance,"Development Program",
2019-2020,P4,"Association coop�rative de productions audio-visuelles",Montreal,Quebec,Canada,"L'AUTRE SOEUR",French,Thriller,2020-03-10,15000.00,15000.00,Advance,"Development Program",
2019-2020,P4,"Thoughts From The Asylum Productions Ltd.",Vancouver,"British Columbia",Canada,"Winners and Losers",English,Comedy,2020-01-15,15000.00,15000.00,Advance,"Development Program",
2019-2020,P4,"Thoughts From The Asylum Productions Ltd.",Vancouver,"British Columbia",Canada,"Before Us",English,Drama,2020-01-15,30000.00,30000.00,Advance,"Development Program",
2019-2020,P4,"Eye Steel Film Inc.",Montreal,Quebec,Canada,"The Westoxicateds",English,Documentary,2020-02-14,15000.00,15000.00,Advance,"Development Program",
2019-2020,P4,"Screen Siren Pictures Inc.",Vancouver,"British Columbia",Canada,"Saving Manno",English,Drama,2020-02-14,96880.00,96880.00,Advance,"Development Program",
2019-2020,P4,"Screen Siren Pictures Inc.",Vancouver,"British Columbia",Canada,"The Unimaginable",English,Drama,2020-02-14,51632.00,51632.00,Advance,"Development Program",
2019-2020,P4,"Screen Siren Pictures Inc.",Vancouver,"British Columbia",Canada,Tombs,English,"Historical Drama",2020-02-14,51452.00,51452.00,Advance,"Development Program",
2019-2020,P4,"Microscope Inc.",Montreal,Quebec,Canada,"Modern Knots",English,Comedy,2020-02-19,30500.00,30500.00,Advance,"Development Program",
2019-2020,P4,"Microscope Inc.",Montreal,Quebec,Canada,"BONNE RETRAITE, JOCELYNE",French,Comedy,2020-02-19,30000.00,30000.00,Advance,"Development Program",
2019-2020,P4,"Microscope Inc.",Montreal,Quebec,Canada,"LE DERNIER R�F�RENDUM",French,Comedy,2020-02-19,24500.00,24500.00,Advance,"Development Program",
2019-2020,P4,"Microscope Inc.",Montreal,Quebec,Canada,"Les mondes de Hamdi",French,Drama,2020-02-19,15000.00,15000.00,Advance,"Development Program",
2019-2020,P4,"Microscope Inc.",Montreal,Quebec,Canada,"Un Deux",French,Drama,2020-02-19,20000.00,20000.00,Advance,"Development Program",
2019-2020,P4,"Microscope Inc.",Montreal,Quebec,Canada,"Midnight King",English,"Science fiction/Fantasy/Tale",2020-02-19,95000.00,95000.00,Advance,"Development Program",
2019-2020,P4,"Solo Productions Inc.",Toronto,Ontario,Canada,"Us in 9 Months",English,Comedy,2020-03-17,15000.00,15000.00,Advance,"Development Program",
2019-2020,P4,"Solo Productions Inc.",Toronto,Ontario,Canada,"Armstrong's War",English,Drama,2020-03-17,20000.00,20000.00,Advance,"Development Program",
2019-2020,P4,"Karma Film Inc.",Saskatoon,Saskatchewan,Canada,"Indians in Cowtown",English,Comedy,2020-02-19,15000.00,15000.00,Advance,"Development Program",
2019-2020,P4,"Karma Film Inc.",Saskatoon,Saskatchewan,Canada,"Laws of Love",English,Documentary,2020-02-19,15000.00,15000.00,Advance,"Development Program",
2019-2020,P4,"Karma Film Inc.",Saskatoon,Saskatchewan,Canada,"Cosmic Current",English,Drama,2020-02-19,15000.00,15000.00,Advance,"Development Program",
2019-2020,P4,"Plausible Communications Corporation",Toronto,Ontario,Canada,Backspot,English,Drama,2020-03-10,15000.00,15000.00,Advance,"Development Program",
2019-2020,P4,"Plausible Communications Corporation",Toronto,Ontario,Canada,"The Shrouds",English,Drama,2020-03-10,45482.00,45482.00,Advance,"Development Program",
2019-2020,P4,"Plausible Communications Corporation",Toronto,Ontario,Canada,"Shakespeare & Co",English,"Historical Drama",2020-03-10,18392.00,18392.00,Advance,"Development Program",
2019-2020,P4,"Buffalo Gal Pictures Inc.",Winnipeg,Manitoba,Canada,"Down Low",English,Drama,2020-03-16,15000.00,15000.00,Advance,"Development Program",
2019-2020,P4,"Buffalo Gal Pictures Inc.",Winnipeg,Manitoba,Canada,"The Blue Castle",English,Drama,2020-03-16,30000.00,30000.00,Advance,"Development Program",
2019-2020,P4,"Buffalo Gal Pictures Inc.",Winnipeg,Manitoba,Canada,"Evening Chorus",English,"Historical Drama",2020-03-16,35000.00,35000.00,Advance,"Development Program",
2019-2020,P4,"Alyson Richards Productions Inc.",Hamilton,Ontario,Canada,Oops,English,Comedy,2020-02-12,15000.00,15000.00,Advance,"Development Program",
2019-2020,P4,"Circle Blue Films Inc.",Mississauga,Ontario,Canada,Orah,English,Drama,2020-02-14,15000.00,15000.00,Advance,"Development Program",
2019-2020,P4,"Zazie Films Inc.",Toronto,Ontario,Canada,"Cap Diamant",French,Drama,2020-03-23,15000.00,15000.00,Advance,"Development Program",
2019-2020,P4,"Howie Role Productions Inc.",Vancouver,"British Columbia",Canada,"Project Ivan",English,"Science fiction/Fantasy/Tale",2020-02-12,15000.00,15000.00,Advance,"Development Program",
2019-2020,P4,"Howie Role Productions Inc.",Vancouver,"British Columbia",Canada,"Six Days 'Til Midnight",English,Thriller,2020-02-12,15000.00,15000.00,Advance,"Development Program",
2019-2020,P4,"Bel Ange Moon Productions Inc.",Laval,Quebec,Canada,Incandescence,French,Drama,2020-02-24,15000.00,15000.00,Advance,"Development Program",
2019-2020,P4,"Clumsy Ophelia Productions Inc.",Toronto,Ontario,Canada,Enduring,English,Drama,2020-02-12,15000.00,15000.00,Advance,"Development Program",
2019-2020,P4,"Massey Productions Ltd.",Vancouver,"British Columbia",Canada,"The Paris Quintet",English,Comedy,2020-02-13,15000.00,15000.00,Advance,"Development Program",
2019-2020,P4,"Holdfast Pictures Inc.",Halifax,"Nova Scotia",Canada,"Birds In Fall",English,Drama,2020-03-30,15000.00,15000.00,Advance,"Development Program",
2019-2020,P4,"Realm Productions & Advertising Inc.","Saint John","New Brunswick",Canada,Hellscape,English,Horror,2020-02-19,15000.00,15000.00,Advance,"Development Program",
2019-2020,P4,"Freddie Films Inc.",Toronto,Ontario,Canada,"Eye of the Hurricane",English,Documentary,2020-03-03,15000.00,15000.00,Advance,"Development Program",
2019-2020,P4,"Couzin Films Inc.",Montreal,Quebec,Canada,L2f2,French,Drama,2020-03-10,15000.00,15000.00,Advance,"Development Program",
2019-2020,P4,"Couzin Films Inc.",Montreal,Quebec,Canada,Sapins,French,"Romantic Comedy",2020-03-10,15000.00,15000.00,Advance,"Development Program",
2019-2020,P4,"Zyl Productions Inc.",Vancouver,"British Columbia",Canada,"Last Year",English,Drama,2020-02-18,15000.00,15000.00,Advance,"Development Program",
2019-2020,P4,"Zyl Productions Inc.",Vancouver,"British Columbia",Canada,Pyramiden,English,Horror,2020-02-18,20000.00,20000.00,Advance,"Development Program",
2019-2020,P4,"Spotted Fawn Productions Inc.",Vancouver,"British Columbia",Canada,Noopiming,English,Drama,2020-03-18,18000.00,18000.00,Advance,"Development Program",
2019-2020,P4,"Eagle Vision Inc.",Winnipeg,Manitoba,Canada,"Jane Garbage",English,Comedy,2020-03-06,15000.00,15000.00,Advance,"Development Program",
2019-2020,P4,"9205-8494 Qu�bec Inc.",Longueuil,Quebec,Canada,"WHEN THE GODS DANCE",English,"Science fiction/Fantasy/Tale",2020-02-10,15000.00,15000.00,Advance,"Development Program",
2019-2020,P4,"Devout Productions Ltd.",Victoria,"British Columbia",Canada,"Alice in the Wall",English,Drama,2020-03-16,15000.00,15000.00,Advance,"Development Program",
2019-2020,P4,"H Is For Productions Inc.",Toronto,Ontario,Canada,Omerta,English,Drama,2020-03-26,20000.00,20000.00,Advance,"Development Program",
2019-2020,P4,"Shadow Shows Incorporated",Toronto,Ontario,Canada,"Little Sister",English,Thriller,2020-03-17,15000.00,15000.00,Advance,"Development Program",
2019-2020,P4,"Shadow Shows Incorporated",Toronto,Ontario,Canada,"Sallie Chisum Loves Pat Garrett and Billy The Kid",English,Western,2020-03-17,15000.00,15000.00,Advance,"Development Program",
2019-2020,P4,"Free Spirit Films Inc.",Toronto,Ontario,Canada,"THE WOMAN WHO LOVES GIRAFFES",English,Drama,2020-02-14,15000.00,15000.00,Advance,"Development Program",
2019-2020,P4,"Cin� Qu�bec",Boucherville,Quebec,Canada,"Cin� Qu�bec",,,2020-02-18,36048.00,36048.00,Contribution,"Promotion Program",
2019-2020,P4,"9402-9238 Qu�bec Inc.",Montreal,Quebec,Canada,"Saules aveugles, femme endormie",French,Drama,2020-03-26,300000.00,300000.00,Investment,"Production Program",
2019-2020,P4,"Hudson Festival of Canadian Film",Hudson,Quebec,Canada,"Hudson Festival of Canadian  Film",,,2020-01-30,2000.00,2000.00,Contribution,"Promotion Program",
2019-2020,P4,"Maison 4:3 Inc.",Montreal,Quebec,Canada,"TWENTIETH CENTURY (THE)",English,"Historical Drama",2020-01-20,68000.00,68000.00,Advance,"Marketing Program",
2019-2020,P4,"Productions Caramel Film Inc.",Montreal,Quebec,Canada,"La Cordonni�re",French,Drama,2020-03-23,0.00,150000.00,Advance,"Production Program","Amended Contract Signed 25-Nov-2019"
2019-2020,P4,"Productions Caramel Film Inc.",Montreal,Quebec,Canada,"La Cordonni�re",French,Drama,2020-03-23,150000.00,150000.00,Investment,"Production Program","Amended Contract Signed 25-Nov-2019"
2019-2020,P4,"Productions OPO inc / OPO Productions  inc.",Montreal,Quebec,Canada,"La r�vision",French,Drama,2020-02-05,691900.00,691900.00,Advance,"Production Program",
2019-2020,P4,"Rajotte Productions Inc.",Winnipeg,Manitoba,Canada,"Winnipeg Aboriginal Film and Video Festival  (WAFF)",,,2020-03-23,5000.00,5000.00,Contribution,"Promotion Program",
2019-2020,P4,"Calgary Underground Film Festival Society",Calgary,Alberta,Canada,"Calgary Underground Film Festival",,,2020-01-10,5000.00,5000.00,Contribution,"Promotion Program",
2019-2020,P4,"Storyline Fx Inc.",Winnipeg,Manitoba,Canada,"Freeze Frame Int'l Film Festival For Kids of All Ages",,,2020-01-08,9345.00,9345.00,Contribution,"Promotion Program",
2019-2020,P4,"Reel to Real: A Celebration Of Moving Images For Youth Society",Vancouver,"British Columbia",Canada,"Reel 2 Real International Film Festival for Youth",,,2020-01-20,7528.00,7528.00,Contribution,"Promotion Program",
2019-2020,P4,"Zeta Films srl","Buenos Aires",,Argentina,"""Charlotte a du fun/Slut in a good wayTitle in Argentina: """"Los amores de Charlotte""""""",English,,2020-02-26,5000.00,5000.00,Contribution,"Export Assistance Program",
2019-2020,P4,"Slow Motion Food Film Fest Society",Wolfville,"Nova Scotia",Canada,"Devour! The Food Film Fest",,,2020-03-20,7500.00,7500.00,Contribution,"Promotion Program",
2019-2020,P4,EUROZOOM,Paris,,France,"MISSION YETI",French,,2020-03-26,44000.00,44000.00,Contribution,"Export Assistance Program",
2019-2020,P4,"New Brunswick Filmmakers Co-operative Limited",Fredericton,"New Brunswick",Canada,"Short Film Venture Program",,,2020-03-20,15000.00,15000.00,Contribution,"Promotion Program",
2019-2020,P4,"Meridian Artists Inc.",Toronto,Ontario,Canada,"Toronto Screenwriting Conference",,,2020-02-25,8000.00,8000.00,Contribution,"Promotion Program",
2019-2020,P4,"ZETA FILMES","Belo Horizonte",,Brazil,"R�PERTOIRE DES VILLES DISPARUES",English,,2020-02-27,6000.00,6000.00,Contribution,"Export Assistance Program",
2019-2020,P4,"Les Productions N�m�sis Films inc.",Montreal,Quebec,Canada,Regret,,,2020-01-20,1500.00,1500.00,Contribution,"International Marketing Program",
2019-2020,P4,"Acad�mie canadienne du cin�ma et de la t�l�vision (section Qu�bec) Inc.",Montreal,Quebec,Canada,"Soir�e des finalistes aux prix �crans canadiens 2020",,,2020-02-05,6000.00,6000.00,Contribution,"Promotion Program",
2019-2020,P4,"Les Films Sanajik inc.",Longueuil,Quebec,Canada,"Sur les traces",French,Documentary,2020-03-30,18000.00,18000.00,Advance,"Development Program",
2019-2020,P4,"The Documentary Media Society",Vancouver,"British Columbia",Canada,"DOXA Documentary Film Festival",,,2020-01-08,10815.00,10815.00,Contribution,"Promotion Program",
2019-2020,P4,"2524681 Ontario Inc.",Hamilton,Ontario,Canada,Dumbbell,English,Comedy,2020-03-17,18000.00,18000.00,Advance,"Development Program",
2019-2020,P4,"THUNDERBIRDMANFILMS Inc.",Selkirk,Manitoba,Canada,"Highway 45",English,Drama,2020-03-16,18000.00,18000.00,Advance,"Development Program",
2019-2020,P4,"Association qu�b�coise de la production m�diatique",Montreal,Quebec,Canada,"Congr�s AQPM",,,2020-02-24,7000.00,7000.00,Contribution,"Promotion Program",
2019-2020,P4,"Rhombus Media Inc.",Toronto,Ontario,Canada,Possessor,,,2020-02-20,25000.00,25000.00,Contribution,"International Marketing Program",
2019-2020,P4,"Alberta Media Production Industries  Association (AMPIA)",Edmonton,Alberta,Canada,"AMPIA Professional Development 2020",,,2020-03-10,20000.00,20000.00,Contribution,"Promotion Program",
2019-2020,P4,"Code Breaker Films LTD.",Winnipeg,Manitoba,Canada,WWShe,English,Comedy,2020-03-31,18000.00,18000.00,Advance,"Development Program",
2019-2020,P4,"Lofty Sky Pictures Inc.",Toronto,Ontario,Canada,"Ask No Questions",,,2020-03-03,5000.00,5000.00,Contribution,"International Marketing Program",
2019-2020,P4,"Baswewe Films Inc.",Naughton,Ontario,Canada,"THE SAVAGE",English,Drama,2020-03-25,18000.00,18000.00,Advance,"Development Program",
2019-2020,P4,"First Nation Films LTD.",Janvier,Alberta,Canada,"ELVIS OF THE NORTH",English,Comedy,2020-03-24,18000.00,18000.00,Advance,"Development Program",
2019-2020,P4,"Fanning Feathers Productions Ltd.",Regina,Saskatchewan,Canada,"Evil Fire",English,Drama,2020-03-24,18000.00,18000.00,Advance,"Development Program",
2019-2020,P4,"Island Media Arts Co-Operative Limited",Charlottetown,"Prince Edward Island",Canada,"PEI Screenwriters' Bootcamp 2020",,,2020-02-10,15000.00,15000.00,Contribution,"Promotion Program",
2019-2020,P4,"Attraction Images inc.",Montreal,Quebec,Canada,"14 jours 12 nuits",,,2020-02-06,2500.00,2500.00,Contribution,"International Marketing Program",
2019-2020,P4,"Canadian Media Producers Association - Association canadienne de la production m�diatique",Toronto,Ontario,Canada,"Profile 2019",,,2020-01-15,15000.00,15000.00,Contribution,"Promotion Program",
2019-2020,P4,"Vues d'Afrique",Montreal,Quebec,Canada,"Festival international de cin�ma Vues d'Afrique",,,2020-02-05,17859.00,17859.00,Contribution,"Promotion Program",
2019-2020,P4,"Films S�ville Inc. (Les)",Montreal,Quebec,Canada,"Sympathie pour le Diable",French,Drama,2020-02-07,54500.00,54500.00,Advance,"Marketing Program",
2019-2020,P4,"Charles Taylor Theatre & Media Arts Association",Dartmouth,"Nova Scotia",Canada,"Emerging Lens Cultural Film Festival",,,2020-03-20,5000.00,5000.00,Contribution,"Promotion Program",
2019-2020,P4,"Women In Film & Television Vancouver Society",Vancouver,"British Columbia",Canada,"VIWFF and WIFT-V Genre Lab",,,2020-01-21,15000.00,15000.00,Contribution,"Promotion Program",
2019-2020,P4,"AVALON DA.",,,Spain,"Il Pleauvait des oiseaux",English,,2020-03-26,44000.00,44000.00,Contribution,"Export Assistance Program",
2019-2020,P4,"Film Zone Inc.",Moncton,"New Brunswick",Canada,"Festival international du cin�ma francophone en Acadie",,,2020-01-17,52808.00,52808.00,Contribution,"Promotion Program",
2019-2020,P4,"R�alisatrices �quitables",Montreal,Quebec,Canada,"Cin�-club Les Dames des vues",,,2020-01-15,10000.00,10000.00,Contribution,"Promotion Program",
2019-2020,P4,"Carrousel international du film de Rimouski (Le)",Rimouski,Quebec,Canada,"Carrousel international du film de Rimouski",,,2020-02-11,25152.00,25152.00,Contribution,"Promotion Program",
2019-2020,P4,"Winnipeg Film Group Inc.",Winnipeg,Manitoba,Canada,"Gimme Some Truth Documentary Festival",,,2020-02-28,3500.00,3500.00,Contribution,"Promotion Program",
2019-2020,P4,"Prends Ca Court! 2010 Inc.",St-Lambert,Quebec,Canada,"Bourse Prix Prends ca court 2020",,,2020-03-02,2500.00,2500.00,Contribution,"Promotion Program",
2019-2020,P4,"Femmes du cinema, de la television et des m�dias num�riques",Montreal,Quebec,Canada,"Programmation annuelle et gala FCTMN",,,2020-02-20,15000.00,15000.00,Contribution,"Promotion Program",
2019-2020,P4,"Eye Steel Film Distribution inc.",Montreal,Quebec,Canada,INFLUENCE,,,2020-03-17,22200.00,22200.00,Contribution,"International Marketing Program",
2019-2020,P4,"The Inside Out LGBT Film Festival Inc.",Toronto,Ontario,Canada,"Inside Out Toronto LGBT Film Festival",,,2020-03-25,5000.00,5000.00,Contribution,"Promotion Program",
2019-2020,P4,"The Charlottetown Film Society, Inc.",Charlottetown,"Prince Edward Island",Canada,"The Charlottetown Film Festival",,,2020-02-26,2500.00,2500.00,Contribution,"Promotion Program",
2019-2020,P4,"Reel Shorts Film Society","Grande Prairie",Alberta,Canada,"Reel Shorts Film Festival",,,2020-01-20,5000.00,5000.00,Contribution,"Promotion Program",
2019-2020,P4,"Stage Butternut Productions Inc.",Toronto,Ontario,Canada,"Stage: The Culinary Internship",,,2020-01-09,1500.00,1500.00,Contribution,"International Marketing Program",
2019-2020,P4,"Independent Web Series Creators of Canada",Toronto,Ontario,Canada,"TO Webfest",,,2020-01-08,5000.00,5000.00,Contribution,"Promotion Program",
2019-2020,P4,"The Film And Video Arts Society of Alberta",Edmonton,Alberta,Canada,"FAVA Studios Launch",,,2020-02-24,2500.00,2500.00,Contribution,"Promotion Program",
2019-2020,P4,"Northern Visions Independent Video & Film Association",Toronto,Ontario,Canada,"Images Festival",,,2020-03-19,15000.00,15000.00,Contribution,"Promotion Program",
2019-2020,P4,"ON SCREEN MANITOBA INCORPORATED",Winnipeg,Manitoba,Canada,"All Access 2020",,,2020-03-10,17000.00,17000.00,Contribution,"Promotion Program",
2019-2020,P4,"Voyelles Plages Inc.",Montreal,Quebec,Canada,"THE TWENTIETH CENTURY",,,2020-02-03,10000.00,10000.00,Contribution,"International Marketing Program",
2019-2020,P4,"GAME THEORY FILMS INC.",Toronto,Ontario,Canada,Spinster,English,Comedy,2020-03-23,30000.00,30000.00,Advance,"Marketing Program",
2019-2020,P4,"Entertainment One Films Canada Inc.",Toronto,Ontario,Canada,"The Kindness of Strangers",English,,2020-03-19,40328.00,40328.00,Advance,"Marketing Program",
2019-2020,P4,"Raven Banner Releasing Inc.",Toronto,Ontario,Canada,"Shoot To Marry",,,2020-03-27,3700.00,3700.00,Contribution,"International Marketing Program",
2019-2020,P4,"Les Productions Catbird Inc.",Montreal,Quebec,Canada,"Finding Sally",,,2020-01-20,4700.00,4700.00,Contribution,"International Marketing Program",
2019-2020,P4,"DM FILMS INC.",Toronto,Ontario,Canada,Chubby,,,2020-02-05,2500.00,2500.00,Contribution,"International Marketing Program",
2019-2020,P4,"Signature Dish Inc.",Mississauga,Ontario,Canada,"Nose to Tail",English,,2020-03-24,19057.00,19057.00,Advance,"Marketing Program",
2019-2020,P4,"Houseplant Films Inc.",Darmouth,"Nova Scotia",Canada,Murmur,,,2020-01-29,1500.00,1500.00,Contribution,"International Marketing Program",
2019-2020,P4,"Houseplant Films Inc.",Darmouth,"Nova Scotia",Canada,Murmur,,,2020-01-29,4700.00,4700.00,Contribution,"International Marketing Program",
2019-2020,P4,"2583035 ONTARIO INC.",Toronto,Ontario,Canada,"The 410",,,2020-03-09,2500.00,2500.00,Contribution,"International Marketing Program",
2019-2020,P4,"Endgame Films Corporation",Toronto,Ontario,Canada,"Easy Land",,,2020-01-20,2500.00,2500.00,Contribution,"International Marketing Program",
2019-2020,P4,"TINAM Inc.",Markham,Ontario,Canada,"This is Not a Movie",,,2020-03-13,1500.00,1500.00,Contribution,"International Marketing Program",
2019-2020,P4,"Banana-Moon Sky Films Inc.",Toronto,Ontario,Canada,"James vs His Future Self",,,2020-01-15,1500.00,1500.00,Contribution,"International Marketing Program",
2019-2020,P4,"STUDIOS DATSIT INTERNATIONAL INC.",Montreal,Quebec,Canada,"Mafia inc.",,,2020-01-24,1500.00,1500.00,Contribution,"International Marketing Program",
2019-2020,P4,"STUDIOS DATSIT INTERNATIONAL INC.",Montreal,Quebec,Canada,ANTIGONE,,,2020-01-24,1500.00,1500.00,Contribution,"International Marketing Program",
2019-2020,P4,"Films Outsiders Inc. (Les)",Verdun,Quebec,Canada,"Il pleuvait des oiseaux",,,2020-01-20,1500.00,1500.00,Contribution,"International Marketing Program",
2019-2020,P4,"Films Outsiders Inc. (Les)",Verdun,Quebec,Canada,"Il pleuvait des oiseaux",,,2020-01-22,1500.00,1500.00,Contribution,"International Marketing Program",
2019-2020,P4,"Films Outsiders Inc. (Les)",Verdun,Quebec,Canada,"Il pleuvait des oiseaux",,,2020-01-22,1500.00,1500.00,Contribution,"International Marketing Program",
2019-2020,P4,"Woods Entertainment Canada Inc.",Toronto,Ontario,Canada,"Castle in the Ground",,,2020-02-04,4000.00,4000.00,Contribution,"International Marketing Program",
2019-2020,P4,"Gobez Media Inc.",Nepean,Ontario,Canada,"The Last Tears of the Deceased",English,Drama,2020-02-12,1500.00,1500.00,Contribution,"International Marketing Program",
2019-2020,P4,"Endgame Films Corporation",Toronto,Ontario,Canada,"Easy Land",,,2020-01-20,1500.00,1500.00,Contribution,"International Marketing Program",
2019-2020,P4,"Le Foyer Films inc.",Montreal,Quebec,Canada,Richelieu,,,2020-03-16,1500.00,1500.00,Contribution,"International Marketing Program",
2019-2020,P4,"JA Productions Inc.",Oakville,Ontario,Canada,"Something You Said Last Night",,,2020-01-16,1500.00,1500.00,Contribution,"International Marketing Program",
2019-2020,P4,"Farnsworth Productions Inc.",Toronto,Ontario,Canada,"Farnsworth House",English,Drama,2020-03-30,2975576.00,2975576.00,Investment,"Production Program",
2019-2020,P4,"Films Outsiders Inc. (Les)",Verdun,Quebec,Canada,"Il pleuvait des oiseaux",,,2020-01-28,1500.00,1500.00,Contribution,"International Marketing Program",
2019-2020,P4,"STUDIOS DATSIT INTERNATIONAL INC.",Montreal,Quebec,Canada,ANTIGONE,,,2020-01-24,1500.00,1500.00,Contribution,"International Marketing Program",
2019-2020,P4,"Sea Green Pictures Inc.",Halifax,"Nova Scotia",Canada,Spinster,,,2020-02-05,5000.00,5000.00,Contribution,"International Marketing Program",
2019-2020,P4,"Leftside Pictures Ltd.",Calgary,Alberta,Canada,"A Walk Down To Water",,,2020-02-04,1700.00,1700.00,Contribution,"International Marketing Program",
2019-2020,P4,"Productions Festives",Trois-Rivieres,Quebec,Canada,"Je finirai en prison",,,2020-02-18,1500.00,1500.00,Contribution,"International Marketing Program",
2019-2020,P4,"Films S�ville Inc. (Les)",Montreal,Quebec,Canada,"Merci pour tout",French,Comedy,2020-02-07,236362.00,236362.00,Advance,"Marketing Program",
2019-2020,P4,"Productions l'unit� centrale inc.",Montreal,Quebec,Canada,"Vie d'un grand r�alisateur",,,2020-02-18,1500.00,1500.00,Contribution,"International Marketing Program",
2019-2020,P4,dreampoolpicturecorp.,Toronto,Ontario,Canada,Oracle,,,2020-02-10,1500.00,1500.00,Contribution,"International Marketing Program",
2019-2020,P4,"Black Conflux Productions NL Inc.",Montreal,Quebec,Canada,"Black Conflux",,,2020-03-18,4700.00,4700.00,Contribution,"International Marketing Program",
2019-2020,P4,"Eye Steel Film Distribution inc.",Montreal,Quebec,Canada,"Chomsky Vs Chomsky: First Encounter",,,2020-02-14,1500.00,1500.00,Contribution,"International Marketing Program",
2019-2020,P4,"Banana-Moon Sky Films Inc.",Toronto,Ontario,Canada,"James vs His Future Self",,,2020-01-15,1500.00,1500.00,Contribution,"International Marketing Program",
2019-2020,P4,"Younger Daughter Films Inc",Toronto,Ontario,Canada,"Broken Orchestra",,,2020-02-03,1700.00,1700.00,Contribution,"International Marketing Program",
2019-2020,P4,"1371097 Ontario Ltd. O/A CaribbeanTales",Toronto,Ontario,Canada,"HERO - Inspired By The Life & Times Of Mr. Ulric Cross",,,2020-03-11,1500.00,1500.00,Contribution,"International Marketing Program",
2019-2020,P4,"A71 Entertainment Inc.",Toronto,Ontario,Canada,"The Cuban",English,,2020-03-19,50000.00,50000.00,Advance,"Marketing Program",
2019-2020,P4,"9187-1608 Qu�bec inc",Longueuil,Quebec,Canada,"Les Fleurs oubli�es",,,2020-02-04,3000.00,3000.00,Contribution,"International Marketing Program",
2019-2020,P4,"Association coop�rative de productions audio-visuelles",Montreal,Quebec,Canada,"LE DERNIER REPAS",,,2020-02-10,1500.00,1500.00,Contribution,"International Marketing Program",
2019-2020,P4,"Wildling Pictures Inc.",Toronto,Ontario,Canada,"Hot Flash",,,2020-03-26,1700.00,1700.00,Contribution,"International Marketing Program",
2019-2020,P4,"775 Media Corp.",Calgary,Alberta,Canada,"Rotterdam Lab",,,2020-03-17,1500.00,1500.00,Contribution,"International Marketing Program",
2019-2020,P4,"Productions MFM Inc.",Montreal,Quebec,Canada,KUESSIPAN,,,2020-01-28,1500.00,1500.00,Contribution,"International Marketing Program",
2019-2020,P4,"Elevation Pictures Corp.",Toronto,Ontario,Canada,"LUCKY DAY",English,Action/Adventure,2020-03-05,99286.00,99286.00,Advance,"Marketing Program",
2019-2020,P4,"Elevation Pictures Corp.",Toronto,Ontario,Canada,"Code 8",English,"Science fiction/Fantasy/Tale",2020-03-09,130601.00,130601.00,Advance,"Marketing Program",
2019-2020,P4,"Elevation Pictures Corp.",Toronto,Ontario,Canada,"Song of Names",English,Drama,2020-03-05,630315.00,630315.00,Advance,"Marketing Program",
2019-2020,P4,"L'OEIL VIF (Faisant affaire sous le nom Les Films du 3 mars)",Montreal,Quebec,Canada,"NIN E TEPUIEAN - MON CRI",French,Documentary,2020-02-17,15000.00,15000.00,Advance,"Marketing Program",
2019-2020,P4,"11437267 Canada inc.",Gatineau,Quebec,Canada,"Rustic Oracle",English,,2020-03-23,56739.00,56739.00,Advance,"Marketing Program",
2019-2020,P4,"Panoramic Pictures Inc.","Conception Bay South",Newfoundland/Labrador,Canada,"Island West",,,2020-02-21,1500.00,1500.00,Contribution,"International Marketing Program",
2019-2020,P4,"Aiken Heart Films Inc.",Toronto,Ontario,Canada,"EAVE Luxembourg",,,2020-03-05,1500.00,1500.00,Contribution,"International Marketing Program",
2019-2020,P4,"Band With Pictures Film Inc. / Les Films Band With Pictures Inc.",Montreal,Quebec,Canada,"My Animal",,,2020-02-18,1500.00,1500.00,Contribution,"International Marketing Program",
2019-2020,P4,"Colonelle films inc.",Montreal,Quebec,Canada,"FLEUR BLEUE",French,Drama,2020-02-24,1500.00,1500.00,Contribution,"International Marketing Program",
2019-2020,P4,"Fragments Distribution Inc.",Montreal,Quebec,Canada,L'Acrobate,French,Drama,2020-02-04,18000.00,18000.00,Advance,"Marketing Program",
2019-2020,P4,"Les Productions Orange Films Inc.",Rosemere,Quebec,Canada,"Apocalypse Meow (aka Mr. Freeze et Allumette)",French,Action/Adventure,2020-02-26,500000.00,500000.00,Investment,"Production Program",
2019-2020,P4,"Maison 4:3 Inc.",Montreal,Quebec,Canada,"Les n�tres",French,Drama,2020-03-24,92582.00,92582.00,Advance,"Marketing Program",
2019-2020,P4,"SDP Entertainment Inc.","Richmond Hill",Ontario,Canada,"No Connection",,,2020-03-12,1500.00,1500.00,Contribution,"International Marketing Program",
2019-2020,P4,"Les Films R�deurs inc.",Montreal,Quebec,Canada,�cume,,,2020-03-06,1700.00,1700.00,Contribution,"International Marketing Program",
2019-2020,P4,"Julijette Inc.",Winnipeg,Manitoba,Canada,"Stump The Guesser",,,2020-03-05,2500.00,2500.00,Contribution,"International Marketing Program",
2019-2020,P4,"Curiosity Pictures Inc.",Burnaby,"British Columbia",Canada,"Until I Find You",,,2020-02-10,1500.00,1500.00,Contribution,"International Marketing Program",
2019-2020,P4,"Parkland Entertainment Limited",London,,"United Kingdom",Astronaut,English,,2020-03-04,24000.00,24000.00,Contribution,"Export Assistance Program",
2019-2020,P4,"Independent Edge Films Inc.",Vancouver,"British Columbia",Canada,"The Pioneer",English,Comedy,2020-03-10,15000.00,15000.00,Advance,"Development Program",
2019-2020,P4,"Independent Edge Films Inc.",Vancouver,"British Columbia",Canada,"North of Normal",English,Drama,2020-03-10,15000.00,15000.00,Advance,"Development Program",
2019-2020,P4,"Independent Edge Films Inc.",Vancouver,"British Columbia",Canada,"Charlie For Your Thoughts",English,"Science fiction/Fantasy/Tale",2020-03-10,15000.00,15000.00,Advance,"Development Program",
2019-2020,P4,"Outsider Films Lda",Lisbon,,Portugal,"The Kindness of Strangers",English,,2020-02-19,39000.00,39000.00,Contribution,"Export Assistance Program",
2019-2020,P4,"Copperheart Entertainment Inc.",Toronto,Ontario,Canada,"Dark Carousel",English,Horror,2020-01-30,40000.00,40000.00,Advance,"Development Program",
2019-2020,P4,"GAME THEORY FILMS INC.",Toronto,Ontario,Canada,Ash,English,Drama,2020-03-20,37500.00,37500.00,Advance,"Marketing Program",
2019-2020,P4,"Distribution H264",Montreal,Quebec,Canada,"Goodbye Golovin",,,2020-03-10,1700.00,1700.00,Contribution,"International Marketing Program",
2019-2020,P4,"Cardinal Pictures Inc.",Toronto,Ontario,Canada,SUZE,English,Comedy,2020-03-30,15000.00,15000.00,Advance,"Development Program",
2019-2020,P4,"Distribution H264",Montreal,Quebec,Canada,"Celle qui porte la pluie",,,2020-02-28,1700.00,1700.00,Contribution,"International Marketing Program",
2019-2020,P4,"Productions l'unit� centrale inc.",Montreal,Quebec,Canada,"ACE Animation Forum",,,2020-03-24,1500.00,1500.00,Contribution,"International Marketing Program",
2019-2020,P4,"Mercury Films Inc.",Toronto,Ontario,Canada,Transcendence,English,Documentary,2020-02-18,35000.00,35000.00,Advance,"Development Program",
2019-2020,P4,"STUDIOS DATSIT INTERNATIONAL INC.",Montreal,Quebec,Canada,"La d�esse des mouches � feu",,,2020-03-03,25000.00,25000.00,Contribution,"International Marketing Program",
2019-2020,P4,"S.N.A.P. Films Inc.",Toronto,Ontario,Canada,"The Cuban",,,2020-03-25,1500.00,1500.00,Contribution,"International Marketing Program",
2019-2020,P4,"775 Media Corp.",Calgary,Alberta,Canada,"I am Herod",English,Drama,2020-03-17,15000.00,15000.00,Advance,"Development Program",
2019-2020,P4,"Unstoppable Urges Productions Ltd.",Toronto,Ontario,Canada,"Choke Cherry Heights",,,2020-02-19,1500.00,1500.00,Contribution,"International Marketing Program",
2019-2020,P4,"Acephale Inc.",Montreal,Quebec,Canada,"The Two Sights",,,2020-03-09,19500.00,19500.00,Contribution,"International Marketing Program",
2019-2020,P4,"Les Productions MH Cousineau Inc.",Montreal,Quebec,Canada,"La rivi�re sans repos � Cr�teil",,,2020-03-05,1500.00,1500.00,Contribution,"International Marketing Program",
2019-2020,P4,"Microscope Inc.",Montreal,Quebec,Canada,POMP�I,French,Drama,2020-03-12,3000.00,3000.00,Contribution,"International Marketing Program",
2019-2020,P4,"9164-6828 Qu�bec Inc. (d/b/a Productions Loaded Pictures)",Montreal,Quebec,Canada,"La Mosqu�e: une communaut� menac�e",French,Documentary,2020-03-24,8000.00,8000.00,Advance,"Marketing Program",
2019-2020,P4,"Microscope Inc.",Montreal,Quebec,Canada,"My Salinger Year",,,2020-03-12,25000.00,25000.00,Contribution,"International Marketing Program",
2019-2020,P4,"Filmoption International Inc.",Westmount,Quebec,Canada,"Lea Tsemel, Avocate",French,Documentary,2020-03-11,6800.00,6800.00,Advance,"Marketing Program",
2019-2020,P4,"Raven Banner Releasing Inc.",Toronto,Ontario,Canada,"Nail in the Coffin: The Fall and Rise of Vampiro",English,Documentary,2020-03-13,15000.00,15000.00,Advance,"Marketing Program",
2019-2020,P4,"Productions 10e Ave inc.",Saint-Augustin-de-Desmaures,Quebec,Canada,"B�luga Blues",,,2020-03-25,1500.00,1500.00,Contribution,"International Marketing Program",
2019-2020,P4,"Elevation Pictures Corp.",Toronto,Ontario,Canada,"Disappearance at Clifton Hill",English,Drama,2020-03-09,219684.00,219684.00,Advance,"Marketing Program",
2019-2020,P4,"Elevation Pictures Corp.",Toronto,Ontario,Canada,"Run This Town",English,Drama,2020-03-09,238546.00,238546.00,Advance,"Marketing Program",
2019-2020,P4,"Elevation Pictures Corp.",Toronto,Ontario,Canada,"Blood Quantum",English,Horror,2020-03-09,348913.00,348913.00,Advance,"Marketing Program",
2019-2020,P4,"Elevation Pictures Corp.",Toronto,Ontario,Canada,"American Woman",English,Drama,2020-03-26,180091.00,180091.00,Advance,"Marketing Program",
2019-2020,P4,"MC2 Communication M�dia inc.",Montreal,Quebec,Canada,"They Call Me Dr.Miami",,,2020-03-10,5000.00,5000.00,Contribution,"International Marketing Program",
2019-2020,P4,"Aqute Media Inc.",Toronto,Ontario,Canada,"Tammy's Always Dying",English,,2020-03-30,41250.00,41250.00,Advance,"Marketing Program",
2019-2020,P4,"Films S�ville Inc. (Les)",Montreal,Quebec,Canada,"MAFIA INC",French,,2020-03-27,383113.00,383113.00,Advance,"Marketing Program",
2019-2020,P4,"Go Films L.P.R.S. inc.",Montreal,Quebec,Canada,KAO,French,Drama,2020-02-28,15000.00,15000.00,Advance,"Development Program",
2019-2020,P4,"Go Films L.P.R.S. inc.",Montreal,Quebec,Canada,"Les Abysses",French,Drama,2020-02-28,55000.00,55000.00,Advance,"Development Program",
2019-2020,P4,"Go Films L.P.R.S. inc.",Montreal,Quebec,Canada,"Ouvrir son coeur",French,Drama,2020-02-28,30000.00,30000.00,Advance,"Development Program",
2019-2020,P4,"Carpediem Film & TV Inc.",Montreal,Quebec,Canada,"L'�curie en folie",French,Comedy,2020-02-24,60000.00,60000.00,Advance,"Development Program",
2019-2020,P4,"Medium Density Fibreboard Films Inc.",Toronto,Ontario,Canada,"Anne at 13,000 ft",,,2020-03-19,22700.00,22700.00,Contribution,"International Marketing Program",
2019-2020,P4,"Melenny Productions Inc.",Montreal,Quebec,Canada,"Les minis Boys",French,Comedy,2020-02-24,20000.00,20000.00,Advance,"Development Program",
2019-2020,P4,"Films Outsiders Inc. (Les)",Verdun,Quebec,Canada,"Il pleuvait des oiseaux",,,2020-03-24,1500.00,1500.00,Contribution,"International Marketing Program",
2019-2020,P4,"WEP Productions",Niddatal,,Germany,Astronaut,English,,2020-03-25,45000.00,45000.00,Contribution,"Export Assistance Program",
2019-2020,P4,"Eye Steel Film Distribution inc.",Montreal,Quebec,Canada,"Dope is Death",,,2020-03-27,4200.00,4200.00,Contribution,"International Marketing Program",
2019-2020,P4,"Firecrackers Film Incorporated",Bolton,Ontario,Canada,Firecrackers,English,Drama,2020-03-30,7500.00,7500.00,Contribution,"Production Program",
